Invoice ID,Supplier Name,Paid Date,Subjective Code,Subjective Name,Service Area,Cost Centre Name,Invoiced
2244406,A B Health Ltd,12/09/2011,53100,Agency Staff  Fulltime,Chief Executives Department,Personnel Svs Occ Health Unit,915.00
2249184,AGR Care Services,19/09/2011,52000,Vol Assoc Grants  General,Children's Services,Res Serv Agency Placements,"11,532.00"
2254364,ARCH Initiatives,26/09/2011,52200,Contracted Services,Adult Services,Drugs Action Team,"76,121.00"
2242361,Abafields Residential Home,06/09/2011,54301,Residential Provision,Adult Services,OA  External Provision Residential,"30,023.74"
2242361,Abafields Residential Home,06/09/2011,54301,Residential Provision,Adult Services,MH Residential External Provision,"1,493.52"
2242398,Abbeywood Tottington Ltd,06/09/2011,54301,Residential Provision,Adult Services,OA  External Provision Residential,"1,543.56"
2247818,Access Doors Systems Ltd,15/09/2011,20100,Day To Day Maintenance,Property Services,Le Mans Crescent  Library,980.00
2246239,Access to Care Ltd,12/09/2011,52000,Vol Assoc Grants  General,Children's Services,Res Serv Agency Placements,800.00
2259808,Access to Care Ltd,29/09/2011,52000,Vol Assoc Grants  General,Children's Services,Res Serv Agency Placements,850.00
2259806,Access to Care Ltd,29/09/2011,52000,Vol Assoc Grants  General,Children's Services,Res Serv Agency Placements,800.00
2259804,Access to Care Ltd,29/09/2011,52000,Vol Assoc Grants  General,Children's Services,Res Serv Agency Placements,850.00
2259802,Access to Care Ltd,29/09/2011,52000,Vol Assoc Grants  General,Children's Services,Res Serv Agency Placements,850.00
2259800,Access to Care Ltd,29/09/2011,52000,Vol Assoc Grants  General,Children's Services,Res Serv Agency Placements,850.00
2259798,Access to Care Ltd,29/09/2011,52000,Vol Assoc Grants  General,Children's Services,Res Serv Agency Placements,850.00
2259796,Access to Care Ltd,29/09/2011,52000,Vol Assoc Grants  General,Children's Services,Res Serv Agency Placements,800.00
2246237,Access to Care Ltd,12/09/2011,52000,Vol Assoc Grants  General,Children's Services,Res Serv Agency Placements,800.00
2246234,Access to Care Ltd,12/09/2011,52000,Vol Assoc Grants  General,Children's Services,Res Serv Agency Placements,850.00
2246222,Access to Care Ltd,12/09/2011,52000,Vol Assoc Grants  General,Children's Services,Res Serv Agency Placements,850.00
2246198,Access to Care Ltd,12/09/2011,52000,Vol Assoc Grants  General,Children's Services,Res Serv Agency Placements,850.00
2246200,Access to Care Ltd,12/09/2011,52000,Vol Assoc Grants  General,Children's Services,Res Serv Agency Placements,850.00
2246215,Access to Care Ltd,12/09/2011,52000,Vol Assoc Grants  General,Children's Services,Res Serv Agency Placements,800.00
2246220,Access to Care Ltd,12/09/2011,52000,Vol Assoc Grants  General,Children's Services,Res Serv Agency Placements,850.00
2242489,Across The Bay,06/09/2011,54301,Residential Provision,Adult Services,OA  External Provision Residential,"1,626.00"
2247914,Advanced Building (NW) Ltd,29/09/2011,20100,Day To Day Maintenance,Central Corporate,Land & Property,"1,870.00"
2247912,Advanced Building (NW) Ltd,29/09/2011,20100,Day To Day Maintenance,Adult Services,LMA External Funded Projects,"1,360.00"
2247945,Advanced Building (NW) Ltd,29/09/2011,20100,Day To Day Maintenance,Property Services,Le Mans Crescent  General,800.00
2242410,Ainsworth Nursing Home,06/09/2011,54301,Residential Provision,Adult Services,PD Purchaser Residential Care,"1,543.56"
2242410,Ainsworth Nursing Home,06/09/2011,54301,Residential Provision,Adult Services,MH Residential External Provision,"6,174.24"
2242410,Ainsworth Nursing Home,06/09/2011,54302,Nursing Provision,Adult Services,OA  External Provision Residential,"3,858.90"
2242410,Ainsworth Nursing Home,06/09/2011,54302,Nursing Provision,Adult Services,MH Residential External Provision,"4,630.68"
2244809,Allpay.net Ltd,12/09/2011,48509,Other Fees,Finance Department,CSD Cashiers,"6,960.41"
2244806,Allpay.net Ltd,12/09/2011,48509,Other Fees,Finance Department,CSD Cashiers,551.54
2252498,Alsecure Group Ltd,22/09/2011,44401,Other Security Expenses,Housing GRF,Benjamin Court Accommodation,839.16
2252545,Alsecure Group Ltd,22/09/2011,44401,Other Security Expenses,Housing GRF,Benjamin Court Accommodation,839.16
2242480,Altham Care Home,06/09/2011,54301,Residential Provision,Adult Services,OA  External Provision Residential,"1,556.00"
2254246,Ampfab Ltd,29/09/2011,40601,General Materials,Adult Services,LMA External Funded Projects,"9,660.00"
2247144,Anchor Trust#2,12/09/2011,52200,Contracted Services,Adult Services,OA  Home Care Services external provision,"21,977.07"
2252055,Anglia DNA Services Limited,22/09/2011,48509,Other Fees,Children's Services,Management Team,580.00
2249140,Animal Wardens,29/09/2011,53000,Private Contracted Services,Environmental Services,Education & Enforcement,909.09
2249141,Animal Wardens,29/09/2011,53000,Private Contracted Services,Environmental Services,Education & Enforcement,608.00
2259206,Animal Wardens,29/09/2011,53000,Private Contracted Services,Environmental Services,Education & Enforcement,931.00
2244252,Ankh of Harrogate,22/09/2011,40701,Periodicals,Adult Services,Museum Retail,675.95
2261713,Aon Ltd,30/09/2011,Z1051,Work in Progress Additions,Housing Revenue Account,Capital  HRA,"362,520.00"
2247002,Aon Ltd,14/09/2011,44450,Third Party Damage Insurance,Children's Services,Technical Innovation Centre,"2,650.00"
2248983,Apcoa Parking UK Ltd#3,19/09/2011,37100,Car Parking,Environmental Services,Parking Services  Off Street,"2,267.28"
2249892,Apcoa Parking UK Ltd#3,19/09/2011,37100,Car Parking,Chief Executives Department,Personnel Svs Occ Health Unit,804.25
2243118,Apetito Ltd,22/09/2011,41101,Catering ProvisionsFood,Adult Services,OA  Community Meals,"1,289.58"
2244261,Apetito Ltd,22/09/2011,41101,Catering ProvisionsFood,Adult Services,OA  Community Meals,"1,427.54"
2244262,Apetito Ltd,22/09/2011,41101,Catering ProvisionsFood,Adult Services,OA  Community Meals,"1,282.77"
2248833,Apetito Ltd,29/09/2011,41101,Catering ProvisionsFood,Adult Services,OA  Community Meals,"1,554.64"
2248842,Apetito Ltd,29/09/2011,41101,Catering ProvisionsFood,Adult Services,OA  Community Meals,"1,023.70"
2260134,Apna News,29/09/2011,47103,Miscellaneous Grants,Chief Executives Department,Voluntary Sector Grants,"4,000.00"
2242929,AquaJoy Bathlifts Ltd,15/09/2011,44051,Clients Aids & Adaptations,Adult Services,AD ICES,"1,017.00"
2244803,Arval Ltd,12/09/2011,31301,Vehicle Fuel,Adult Services,AD ICES,672.90
2244803,Arval Ltd,12/09/2011,31301,Vehicle Fuel,Environmental Services,Highway Works  Unallocated Costs,"4,790.05"
2244803,Arval Ltd,12/09/2011,31301,Vehicle Fuel,Environmental Services,Greenspace,"4,633.35"
2244803,Arval Ltd,12/09/2011,31301,Vehicle Fuel,Environmental Services,Streets & Grounds,"11,664.64"
2244803,Arval Ltd,12/09/2011,31301,Vehicle Fuel,Environmental Services,Waste,"38,546.89"
2244803,Arval Ltd,12/09/2011,31301,Vehicle Fuel,Environmental Services,Pest Control,569.40
2244803,Arval Ltd,12/09/2011,31301,Vehicle Fuel,Environmental Services,Bereavement Services,522.15
2244803,Arval Ltd,12/09/2011,31301,Vehicle Fuel,Environmental Services,Security Services,652.01
2244803,Arval Ltd,12/09/2011,31301,Vehicle Fuel,Environmental Services,Transport Support Service,672.26
2244803,Arval Ltd,12/09/2011,31301,Vehicle Fuel,Environmental Services,SNT Adult Servs,"6,065.55"
2244803,Arval Ltd,12/09/2011,31301,Vehicle Fuel,Environmental Services,SNT Childrens Servs,"1,155.01"
2244805,Arval Ltd,12/09/2011,31301,Vehicle Fuel,Adult Services,AD ICES,527.18
2244805,Arval Ltd,12/09/2011,31301,Vehicle Fuel,Environmental Services,Highway Works  Unallocated Costs,"3,164.88"
2244805,Arval Ltd,12/09/2011,31301,Vehicle Fuel,Environmental Services,Greenspace,"3,158.27"
2244805,Arval Ltd,12/09/2011,31301,Vehicle Fuel,Environmental Services,Streets & Grounds,"7,693.23"
2244805,Arval Ltd,12/09/2011,31301,Vehicle Fuel,Environmental Services,Waste,"26,239.48"
2244805,Arval Ltd,12/09/2011,31301,Vehicle Fuel,Environmental Services,SNT Adult Servs,"3,824.77"
2244805,Arval Ltd,12/09/2011,31301,Vehicle Fuel,Environmental Services,SNT Childrens Servs,544.95
2248127,Asda Pharmacy,15/09/2011,52200,Contracted Services,Adult Services,Drugs Action Team,517.00
2242441,Ashleigh House Care Home,06/09/2011,54301,Residential Provision,Adult Services,OA  External Provision Residential,"1,448.00"
2242459,Ashwood Rest Home,06/09/2011,54301,Residential Provision,Adult Services,OA  External Provision Residential,"1,624.00"
2259775,Associated Cleaning Contractors,29/09/2011,52200,Contracted Services,Housing GRF,Access & Advice Housing Options Centre,814.40
2260328,Associated Cleaning Contractors,29/09/2011,20100,Day To Day Maintenance,Children's Services,Technical Innovation Centre,560.00
2242888,Associated Cleaning Contractors,05/09/2011,26101,Contract Cleaning,Children's Services,Technical Innovation Centre,"1,961.03"
2256475,Associated Cleaning Contractors,26/09/2011,26101,Contract Cleaning,Children's Services,Management Team,"1,784.00"
2242406,Astley Grange,06/09/2011,54302,Nursing Provision,Adult Services,OA  External Provision Residential,"9,156.56"
2245538,Atkins Limited,12/09/2011,52200,Contracted Services,Property Services,Operational Facilities Management,"24,793.84"
2252024,Atlantic Electric & Gas,22/09/2011,21100,Electricity  General,Development & Regen,REDD ES Rechargeable Costs,"1,325.86"
2242958,Atlantix Construction,22/09/2011,Z6008,Expense AP Accrual,Bolton MBC Balance Sheet,Bolton MBC Balance Sheet,"71,531.70"
2252476,Aubrey Isaacson Solicitors,21/09/2011,Z1051,Work in Progress Additions,Housing GRF,Capital  General Fund,"56,000.00"
2252575,Automatic Alarms Limited,22/09/2011,Z1051,Work in Progress Additions,Housing Revenue Account,Capital  HRA,"4,977.54"
2246335,B & M Davies (Plant Hire) Ltd,22/09/2011,Z6008,Expense AP Accrual,Bolton MBC Balance Sheet,Bolton MBC Balance Sheet,784.00
2251944,B & M Davies (Plant Hire) Ltd,22/09/2011,Z6008,Expense AP Accrual,Bolton MBC Balance Sheet,Bolton MBC Balance Sheet,868.00
2251949,B & M Davies (Plant Hire) Ltd,22/09/2011,33202,Plant Hire,Environmental Services,Depots,592.00
2248665,B & M Davies (Plant Hire) Ltd,15/09/2011,33202,Plant Hire,Environmental Services,Depots,"1,360.75"
2251945,B & M Davies (Plant Hire) Ltd,22/09/2011,33202,Plant Hire,Environmental Services,Bereavement Services,671.25
2251948,B & M Davies (Plant Hire) Ltd,22/09/2011,33202,Plant Hire,Environmental Services,Bereavement Services,850.00
2251950,B & M Davies (Plant Hire) Ltd,22/09/2011,33202,Plant Hire,Environmental Services,Bereavement Services,710.10
2254352,B & M Davies (Plant Hire) Ltd,29/09/2011,20501,Engineering Work,Environmental Services,Highways Works Billable,542.00
2249658,B & M Davies (Plant Hire) Ltd,29/09/2011,Z6008,Expense AP Accrual,Bolton MBC Balance Sheet,Bolton MBC Balance Sheet,592.00
2243085,B & M Davies (Plant Hire) Ltd,12/09/2011,Z6008,Expense AP Accrual,Bolton MBC Balance Sheet,Bolton MBC Balance Sheet,674.00
2248563,B & M Davies (Plant Hire) Ltd,29/09/2011,Z6008,Expense AP Accrual,Bolton MBC Balance Sheet,Bolton MBC Balance Sheet,625.00
2247130,B C Hamer,12/09/2011,Z1051,Work in Progress Additions,Housing GRF,Capital  General Fund,"2,500.00"
2243989,B Foley & Son,08/09/2011,Z1051,Work in Progress Additions,Housing GRF,Capital  General Fund,"3,757.00"
2260685,B Foley & Son,29/09/2011,Z1051,Work in Progress Additions,Housing GRF,Capital  General Fund,954.00
2250171,BNP Paribas Lease Group (Rentals),19/09/2011,43030,Photocopying Lease/Maintenance,Chief Executives Department,MFD Project,"1,958.00"
2259974,Bandwagon Productions Ltd,29/09/2011,48501,Artistes Fees,Adult Services,Albert Halls  Entertainments,516.69
2242458,Bank House Care Home,06/09/2011,54301,Residential Provision,Adult Services,OA  External Provision Residential,"1,543.56"
2254397,Bardon Contracting (Northern),26/09/2011,Z1051,Work in Progress Additions,Highways,Stores,"10,927.40"
2242447,Bedford Residential Nursing Care Home,06/09/2011,54301,Residential Provision,Adult Services,OA  External Provision Residential,"1,519.00"
2242447,Bedford Residential Nursing Care Home,06/09/2011,54302,Nursing Provision,Adult Services,OA  External Provision Residential,"1,494.08"
2242446,Bedford Residential Nursing Care Home,06/09/2011,54302,Nursing Provision,Adult Services,OA  External Provision Residential,"4,802.40"
2242493,Beechfield Lodge#Anchor Trust,06/09/2011,54301,Residential Provision,Adult Services,OA  External Provision Residential,"1,531.44"
2242474,Beechville Care Home,06/09/2011,54301,Residential Provision,Adult Services,OA  External Provision Residential,"3,157.76"
2242476,Beechwood House,06/09/2011,54301,Residential Provision,Adult Services,OA  External Provision Residential,"1,961.12"
2242492,Belong Wigan#EPH,06/09/2011,54301,Residential Provision,Adult Services,OA  External Provision Residential,"1,519.00"
2243005,Bertram Library Services,22/09/2011,40753,Book Fund Expenditure,Adult Services,Information Services,"10,279.90"
2254404,Bethell Construction Ltd,26/09/2011,Z1051,Work in Progress Additions,Highways,Stores,"63,738.17"
2249111,Bickford Truck Hire Ltd,26/09/2011,33201,Transport Hire,Environmental Services,Transport Support Service,"1,001.00"
2242497,Birch Tree Manor,06/09/2011,54301,Residential Provision,Adult Services,OA  External Provision Residential,"1,561.07"
2259833,Birkdale Design Ltd,29/09/2011,40150,Office Furniture Purchase,Housing GRF,Furnished Tenancies,660.00
2243136,Birkdale Design Ltd,05/09/2011,40150,Office Furniture Purchase,Housing GRF,Furnished Tenancies,745.00
2243137,Birkdale Design Ltd,05/09/2011,40150,Office Furniture Purchase,Housing GRF,Furnished Tenancies,937.00
2243138,Birkdale Design Ltd,05/09/2011,40150,Office Furniture Purchase,Housing GRF,Furnished Tenancies,745.00
2248987,Birkdale Design Ltd,15/09/2011,40150,Office Furniture Purchase,Housing GRF,Furnished Tenancies,781.00
2252934,Birkdale Design Ltd,22/09/2011,40150,Office Furniture Purchase,Housing GRF,Furnished Tenancies,745.00
2252936,Birkdale Design Ltd,22/09/2011,40150,Office Furniture Purchase,Housing GRF,Furnished Tenancies,745.00
2252937,Birkdale Design Ltd,22/09/2011,40150,Office Furniture Purchase,Housing GRF,Furnished Tenancies,745.00
2252938,Birkdale Design Ltd,22/09/2011,40150,Office Furniture Purchase,Housing GRF,Furnished Tenancies,745.00
2252940,Birkdale Design Ltd,22/09/2011,40150,Office Furniture Purchase,Housing GRF,Furnished Tenancies,745.00
2252941,Birkdale Design Ltd,22/09/2011,40150,Office Furniture Purchase,Housing GRF,Furnished Tenancies,660.00
2252943,Birkdale Design Ltd,22/09/2011,40150,Office Furniture Purchase,Housing GRF,Furnished Tenancies,826.00
2252944,Birkdale Design Ltd,22/09/2011,40150,Office Furniture Purchase,Housing GRF,Furnished Tenancies,745.00
2252492,Birkdale Design Ltd,22/09/2011,40150,Office Furniture Purchase,Housing GRF,Furnished Tenancies,745.00
2259661,Birkdale Design Ltd,29/09/2011,40150,Office Furniture Purchase,Housing GRF,Furnished Tenancies,610.00
2259912,Birkdale Design Ltd,29/09/2011,40150,Office Furniture Purchase,Housing GRF,Furnished Tenancies,610.00
2259828,Birkdale Design Ltd,29/09/2011,40150,Office Furniture Purchase,Housing GRF,Furnished Tenancies,745.00
2259825,Birkdale Design Ltd,29/09/2011,40150,Office Furniture Purchase,Housing GRF,Furnished Tenancies,745.00
2259814,Birkdale Design Ltd,29/09/2011,40150,Office Furniture Purchase,Housing GRF,Furnished Tenancies,745.00
2259992,Birkdale Design Ltd,29/09/2011,40150,Office Furniture Purchase,Housing GRF,Furnished Tenancies,745.00
2249189,Birtenshaw Hall (Childrens Charitable Trust),19/09/2011,52000,Vol Assoc Grants  General,Children's Services,Disability Serv External Provision,"10,101.00"
2247797,Birtenshaw Hall (Childrens Charitable Trust),15/09/2011,52000,Vol Assoc Grants  General,Children's Services,Disability Serv Short Breaks,"1,798.62"
2247796,Birtenshaw Hall (Childrens Charitable Trust),15/09/2011,52000,Vol Assoc Grants  General,Children's Services,Disability Serv Short Breaks,"3,468.60"
2246264,Birtenshaw Hall (Childrens Charitable Trust),12/09/2011,52000,Vol Assoc Grants  General,Children's Services,Disability Serv Short Breaks,930.00
2242412,Blackrod House,06/09/2011,54301,Residential Provision,Adult Services,OA  External Provision Residential,"20,282.27"
2242412,Blackrod House,06/09/2011,54301,Residential Provision,Adult Services,PD Purchaser Residential Care,757.33
2250346,Bolton Carpet Warehouse,19/09/2011,40150,Office Furniture Purchase,Housing GRF,Furnished Tenancies,673.79
2251245,Bolton Carpet Warehouse,19/09/2011,40150,Office Furniture Purchase,Housing Revenue Account,Furnished Tenancies,675.79
2250342,Bolton Carpet Warehouse,19/09/2011,40110,Op Equip Furniture Purchase,Housing GRF,Dispersed Properties,533.33
2250212,Bolton Carpet Warehouse,19/09/2011,40150,Office Furniture Purchase,Housing GRF,Furnished Tenancies,673.79
2250227,Bolton Carpet Warehouse,19/09/2011,40150,Office Furniture Purchase,Housing GRF,Furnished Tenancies,598.28
2250273,Bolton Carpet Warehouse,19/09/2011,40150,Office Furniture Purchase,Housing GRF,Furnished Tenancies,598.28
2261692,Bolton Community Leisure Ltd,30/09/2011,52200,Contracted Services,Development & Regen,The Leisure Trust,"242,798.29"
2260144,Bolton Hindu Forum,29/09/2011,47103,Miscellaneous Grants,Chief Executives Department,Voluntary Sector Grants,"11,250.00"
2250211,Bolton Primary Care Trust#12#Bolton PCT,19/09/2011,52200,Contracted Services,Children's Services,Corporate Parenting,"2,325.00"
2247552,Bolton Primary Care Trust#12#Bolton PCT,15/09/2011,54300,Independant Sector Placements,Adult Services,OA  External Provision Residential,"1,693.00"
2242898,Bolton Primary Care Trust#12#Bolton PCT,08/09/2011,54300,Independant Sector Placements,Adult Services,OA  External Provision Residential,"1,888.00"
2248522,Bolton Safety Glass,15/09/2011,52200,Contracted Services,Environmental Services,Transport Support Service,540.00
2252840,Bolton Stone Restoration Ltd,22/09/2011,20103,Day To Day Maintenance Structural,Environmental Services,Depots,"2,397.00"
2252803,Bolton Stone Restoration Ltd,22/09/2011,20100,Day To Day Maintenance,Central Corporate,Land & Property,"3,562.01"
2252075,Bolton Toy Library,22/09/2011,52200,Contracted Services,Children's Services,Admin Commissioning,"12,500.00"
2259990,Bolton WISE Ltd#eatWISE#WISEWorks#WISEtraining (14-19),29/09/2011,Z1051,Work in Progress Additions,Housing GRF,Capital  General Fund,"1,823.48"
2259859,Bolton Young Persons Housing Scheme#BYPHS,29/09/2011,52000,Vol Assoc Grants  General,Children's Services,Res Serv Agency Placements,"1,800.00"
2259857,Bolton Young Persons Housing Scheme#BYPHS,29/09/2011,52000,Vol Assoc Grants  General,Children's Services,Res Serv Agency Placements,"2,542.28"
2259854,Bolton Young Persons Housing Scheme#BYPHS,29/09/2011,52000,Vol Assoc Grants  General,Children's Services,Res Serv Agency Placements,"1,800.00"
2248130,Boots The Chemist,15/09/2011,52200,Contracted Services,Adult Services,Drugs Action Team,530.20
2260397,Boots The Chemist,29/09/2011,52200,Contracted Services,Adult Services,Drugs Action Team,871.60
2242472,Bowerswood House Retirement Home Ltd,06/09/2011,54301,Residential Provision,Adult Services,OA  External Provision Residential,"1,440.00"
2244367,Brake Brothers Ltd,19/09/2011,41101,Catering ProvisionsFood,Adult Services,Community Meals,597.52
2242495,Brideoake Care Home,06/09/2011,54301,Residential Provision,Adult Services,OA  External Provision Residential,"1,315.60"
2244052,Bridgeall Libraries Limited,08/09/2011,47200,General Subscriptions,Adult Services,LMA Management,"8,566.80"
2246284,Bristow & Sutor,22/09/2011,48509,Other Fees,Finance Department,Council Tax,511.50
2255169,British Gas Business,26/09/2011,21100,Electricity  General,Housing GRF,Communal Services Capital And Admin.,"4,104.66"
2255168,British Gas Business,26/09/2011,21200,Gas  General,Housing GRF,Communal Services Capital And Admin.,"1,983.27"
2242983,British Gas Business,05/09/2011,21200,Gas  General,Housing GRF,Communal Services Capital And Admin.,552.55
2242983,British Gas Business,05/09/2011,21200,Gas  General,Central Corporate,Land & Property,"3,314.68"
2252171,Bronte Natural Spring Water Ltd#Bronte Water Coolers Limited,29/09/2011,40613,Goods for Resale,Adult Services,Civic Catering General,953.30
2242479,Brookfield Residential Care Home Ltd,06/09/2011,54301,Residential Provision,Adult Services,MH Residential External Provision,"3,663.56"
2242432,Brookvale,06/09/2011,54301,Residential Provision,Adult Services,LD Purchaser Residential Care,"7,000.00"
2247155,Brothers Of Charity Services,26/09/2011,52200,Contracted Services,Adult Services,LD Purchaser Domiciliary Care,937.44
2247155,Brothers Of Charity Services,26/09/2011,52200,Contracted Services,Adult Services,LD Purchaser Day Services,801.16
2248950,Brothers Of Charity Services,26/09/2011,52200,Contracted Services,Adult Services,LD Purchaser Domiciliary Care,"2,124.40"
2242429,Brothers Of Charity Services,06/09/2011,54302,Nursing Provision,Adult Services,LD Purchaser Residential Care,"3,617.20"
2242393,Broughton House#EPH,06/09/2011,54301,Residential Provision,Adult Services,OA  External Provision Residential,"1,526.96"
2242394,Browfield Residential Care Home,06/09/2011,54301,Residential Provision,Adult Services,MH Residential External Provision,"4,663.48"
2254238,Broxap Limited,29/09/2011,40601,General Materials,Environmental Services,Streets & Grounds,"5,709.20"
2244214,Burnt Tree Group,08/09/2011,33201,Transport Hire,Environmental Services,Transport Support Service,"1,085.88"
2253490,C Horrocks & Sons Ltd,26/09/2011,20101,Programmed Maint. Work,Adult Services,Albert Halls  Operations,757.00
2248443,C Horrocks & Sons Ltd,15/09/2011,45405,Computer Consumables,Chief Executives Department,Performance & Scrutiny,625.00
2249108,C P Davidson & Sons Ltd,29/09/2011,33201,Transport Hire,Environmental Services,Transport Support Service,"3,611.00"
2247158,CEMEX UK Materials Ltd,22/09/2011,Z6008,Expense AP Accrual,Bolton MBC Balance Sheet,Bolton MBC Balance Sheet,549.70
2246296,CEMEX UK Materials Ltd,22/09/2011,Z6008,Expense AP Accrual,Bolton MBC Balance Sheet,Bolton MBC Balance Sheet,"1,034.74"
2249655,CEMEX UK Materials Ltd,29/09/2011,Z6008,Expense AP Accrual,Bolton MBC Balance Sheet,Bolton MBC Balance Sheet,"6,912.46"
2251053,CEMEX UK Materials Ltd,19/09/2011,Z6008,Expense AP Accrual,Bolton MBC Balance Sheet,Bolton MBC Balance Sheet,"8,418.72"
2247106,CEMEX UK Materials Ltd,26/09/2011,Z6008,Expense AP Accrual,Bolton MBC Balance Sheet,Bolton MBC Balance Sheet,745.15
2247015,CEMEX UK Materials Ltd,22/09/2011,Z6008,Expense AP Accrual,Bolton MBC Balance Sheet,Bolton MBC Balance Sheet,543.75
2244055,CEMEX UK Materials Ltd,08/09/2011,Z6008,Expense AP Accrual,Bolton MBC Balance Sheet,Bolton MBC Balance Sheet,"11,219.69"
2242424,Cameron House Care Home,06/09/2011,54301,Residential Provision,Adult Services,OA  External Provision Residential,"1,543.56"
2251925,Canon (UK) Limited,22/09/2011,43030,Photocopying Lease/Maintenance,Chief Executives Department,MFD Project,"1,361.60"
2242442,Care Stanley Grange,06/09/2011,54301,Residential Provision,Adult Services,LD Purchaser Residential Care,"3,640.64"
2259954,Care UK Homecare#Care UK (Bolton),29/09/2011,52200,Contracted Services,Adult Services,OA  Home Care Services external provision,766.04
2259950,Care UK Homecare#Care UK (Bolton),29/09/2011,52200,Contracted Services,Adult Services,OA  Home Care Services external provision,"92,386.41"
2242496,Cartmel Grange,06/09/2011,54302,Nursing Provision,Adult Services,OA  External Provision Residential,"1,688.00"
2247092,Chassis & Cab Specialists,22/09/2011,52200,Contracted Services,Environmental Services,Transport Support Service,940.00
2242396,Chataway Nursing Home,06/09/2011,54302,Nursing Provision,Adult Services,MH Residential External Provision,"2,035.04"
2242456,Cherry Hinton Nursing Home,06/09/2011,54302,Nursing Provision,Adult Services,OA  External Provision Residential,"1,796.00"
2257210,Cheshire Centre for Independant Living,29/09/2011,53000,Private Contracted Services,Adult Services,AD Direct Payments Team,"6,563.75"
2248780,City B Group,29/09/2011,40100,Operational Equipment Purchase,Environmental Services,Markets  Rent Account,"3,600.00"
2260358,Civica UK Ltd,29/09/2011,45401,Computer Maintenance,Chief Executives Department,Regulatory Overheads,"1,895.83"
2242490,Clayton Brook House,06/09/2011,54301,Residential Provision,Adult Services,LD Purchaser Residential Care,"12,223.68"
2242426,Cleveleys Nursing Home,06/09/2011,54302,Nursing Provision,Adult Services,OA  External Provision Residential,"1,792.00"
2243982,Clicquot Utilities Ltd,08/09/2011,52200,Contracted Services,Finance Department,Housing Benefits,660.00
2252071,Clicquot Utilities Ltd,22/09/2011,52200,Contracted Services,Finance Department,Housing Benefits,585.00
2252068,Clicquot Utilities Ltd,22/09/2011,52200,Contracted Services,Finance Department,Housing Benefits,693.00
2245987,Clicquot Utilities Ltd,12/09/2011,52200,Contracted Services,Finance Department,Housing Benefits,588.00
2243065,Clifton Quality Meats Ltd,19/09/2011,41101,Catering ProvisionsFood,Adult Services,Community Meals,693.65
2252783,Clifton Quality Meats Ltd,29/09/2011,41101,Catering ProvisionsFood,Adult Services,Community Meals,521.94
2243095,Colas Ltd,15/09/2011,Z6008,Expense AP Accrual,Bolton MBC Balance Sheet,Bolton MBC Balance Sheet,504.72
2243094,Colas Ltd,15/09/2011,Z6008,Expense AP Accrual,Bolton MBC Balance Sheet,Bolton MBC Balance Sheet,640.80
2248932,Colbre Projects Ltd,15/09/2011,Z1051,Work in Progress Additions,Environmental Services,Environmental Services Balance sheet,"48,500.00"
2260417,Comensura Ltd,29/09/2011,53102,Agency Staff  Other,Adult Services,AD  Contracts,608.68
2260417,Comensura Ltd,29/09/2011,53102,Agency Staff  Other,Adult Services,OA  Darley Court Intermediate Care,"2,698.01"
2260417,Comensura Ltd,29/09/2011,53102,Agency Staff  Other,Adult Services,OA Merton  Extra Care Housing,"1,304.42"
2260417,Comensura Ltd,29/09/2011,53102,Agency Staff  Other,Chief Executives Department,Food Control,"2,696.80"
2260417,Comensura Ltd,29/09/2011,53102,Agency Staff  Other,Chief Executives Department,Personnel Svs Occ Health Unit,918.92
2260417,Comensura Ltd,29/09/2011,53102,Agency Staff  Other,Environmental Services,Greenspace,"2,696.92"
2260417,Comensura Ltd,29/09/2011,53102,Agency Staff  Other,Environmental Services,Waste,"26,264.65"
2260417,Comensura Ltd,29/09/2011,53102,Agency Staff  Other,Environmental Services,Trade Waste,904.34
2260417,Comensura Ltd,29/09/2011,53102,Agency Staff  Other,Environmental Services,Bereavement Services,"1,317.60"
2260417,Comensura Ltd,29/09/2011,53102,Agency Staff  Other,Environmental Services,Markets  Rent Account,"1,037.35"
2260417,Comensura Ltd,29/09/2011,53102,Agency Staff  Other,Development & Regen,REDD ES Rechargeable Costs,517.26
2260417,Comensura Ltd,29/09/2011,53102,Agency Staff  Other,Children's Services,Safeguarding Team North,"1,951.25"
2260417,Comensura Ltd,29/09/2011,53102,Agency Staff  Other,Finance Department,C.R.M. Operations,"7,554.49"
2260417,Comensura Ltd,29/09/2011,53102,Agency Staff  Other,Housing GRF,Homes for You,570.70
2260417,Comensura Ltd,29/09/2011,53102,Agency Staff  Other,Property Services,Operational Facilities Management,"2,070.76"
2260417,Comensura Ltd,29/09/2011,53102,Agency Staff  Other,Property Services,Projects,"1,711.79"
2260417,Comensura Ltd,29/09/2011,53102,Agency Staff  Other,Legal Trading,Legal Services Trading Account,"1,840.51"
2260417,Comensura Ltd,29/09/2011,53102,Agency Staff  Other,Central Corporate,Coroners,595.90
2246114,Comensura Ltd,12/09/2011,53102,Agency Staff  Other,Adult Services,AD  Contracts,828.48
2246114,Comensura Ltd,12/09/2011,53102,Agency Staff  Other,Adult Services,OA  Darley Court Intermediate Care,"3,532.60"
2246114,Comensura Ltd,12/09/2011,53102,Agency Staff  Other,Chief Executives Department,Food Control,"2,078.16"
2246114,Comensura Ltd,12/09/2011,53102,Agency Staff  Other,Chief Executives Department,Personnel Svs Occ Health Unit,565.04
2246114,Comensura Ltd,12/09/2011,53102,Agency Staff  Other,Environmental Services,Greenspace,"6,279.24"
2246114,Comensura Ltd,12/09/2011,53102,Agency Staff  Other,Environmental Services,Streets & Grounds,"1,764.01"
2246114,Comensura Ltd,12/09/2011,53102,Agency Staff  Other,Environmental Services,Waste,"30,231.36"
2246114,Comensura Ltd,12/09/2011,53102,Agency Staff  Other,Environmental Services,Bereavement Services,"2,135.21"
2246114,Comensura Ltd,12/09/2011,53102,Agency Staff  Other,Environmental Services,Transport Support Service,"1,269.13"
2246114,Comensura Ltd,12/09/2011,53102,Agency Staff  Other,Environmental Services,Markets  Rent Account,"1,142.69"
2246114,Comensura Ltd,12/09/2011,53102,Agency Staff  Other,Children's Services,Safeguarding Team North,793.75
2246114,Comensura Ltd,12/09/2011,53102,Agency Staff  Other,Finance Department,C.R.M. Operations,"4,971.13"
2246114,Comensura Ltd,12/09/2011,53102,Agency Staff  Other,Housing GRF,Bolton Community Homes,671.65
2246114,Comensura Ltd,12/09/2011,53102,Agency Staff  Other,Housing GRF,Homes for You,829.71
2246114,Comensura Ltd,12/09/2011,53102,Agency Staff  Other,Property Services,Operational Facilities Management,753.07
2246114,Comensura Ltd,12/09/2011,53102,Agency Staff  Other,Property Services,Projects,"1,591.80"
2246114,Comensura Ltd,12/09/2011,53102,Agency Staff  Other,Central Corporate,Coroners,656.30
2252718,Comensura Ltd,22/09/2011,53102,Agency Staff  Other,Adult Services,AD  Contracts,762.79
2252718,Comensura Ltd,22/09/2011,53102,Agency Staff  Other,Adult Services,OA  Darley Court Intermediate Care,637.49
2252718,Comensura Ltd,22/09/2011,53102,Agency Staff  Other,Adult Services,OA Merton  Extra Care Housing,"1,164.19"
2252718,Comensura Ltd,22/09/2011,53102,Agency Staff  Other,Chief Executives Department,Food Control,"1,297.92"
2252718,Comensura Ltd,22/09/2011,53102,Agency Staff  Other,Chief Executives Department,Personnel Svs Occ Health Unit,647.40
2252718,Comensura Ltd,22/09/2011,53102,Agency Staff  Other,Environmental Services,Greenspace,"5,248.41"
2252718,Comensura Ltd,22/09/2011,53102,Agency Staff  Other,Environmental Services,Streets & Grounds,"2,288.05"
2252718,Comensura Ltd,22/09/2011,53102,Agency Staff  Other,Environmental Services,Waste,"6,297.40"
2252718,Comensura Ltd,22/09/2011,53102,Agency Staff  Other,Environmental Services,Pest Control,542.77
2252718,Comensura Ltd,22/09/2011,53102,Agency Staff  Other,Environmental Services,Bereavement Services,"3,665.02"
2252718,Comensura Ltd,22/09/2011,53102,Agency Staff  Other,Environmental Services,Markets  Rent Account,"1,591.74"
2252718,Comensura Ltd,22/09/2011,53102,Agency Staff  Other,Development & Regen,REDD ES Rechargeable Costs,517.26
2252718,Comensura Ltd,22/09/2011,53102,Agency Staff  Other,Finance Department,C.R.M. Operations,"7,176.98"
2252718,Comensura Ltd,22/09/2011,53102,Agency Staff  Other,Housing GRF,Homes for You,570.70
2252718,Comensura Ltd,22/09/2011,53102,Agency Staff  Other,Property Services,Operational Facilities Management,"1,673.85"
2252718,Comensura Ltd,22/09/2011,53102,Agency Staff  Other,Property Services,Projects,"1,659.82"
2252718,Comensura Ltd,22/09/2011,53102,Agency Staff  Other,Property Services,Corporate Asset Planning,564.02
2252718,Comensura Ltd,22/09/2011,53102,Agency Staff  Other,Legal Trading,Legal Services Trading Account,"1,271.09"
2249549,Comensura Ltd,19/09/2011,53102,Agency Staff  Other,Adult Services,AD  Contracts,762.79
2249549,Comensura Ltd,19/09/2011,53102,Agency Staff  Other,Adult Services,OA  Darley Court Intermediate Care,"1,361.66"
2249549,Comensura Ltd,19/09/2011,53102,Agency Staff  Other,Adult Services,OA Merton  Extra Care Housing,"1,103.10"
2249549,Comensura Ltd,19/09/2011,53102,Agency Staff  Other,Chief Executives Department,Food Control,"2,259.87"
2249549,Comensura Ltd,19/09/2011,53102,Agency Staff  Other,Chief Executives Department,Personnel Svs Occ Health Unit,677.72
2249549,Comensura Ltd,19/09/2011,53102,Agency Staff  Other,Environmental Services,Waste,"3,468.34"
2249549,Comensura Ltd,19/09/2011,53102,Agency Staff  Other,Environmental Services,Pest Control,975.52
2249549,Comensura Ltd,19/09/2011,53102,Agency Staff  Other,Environmental Services,Markets  Rent Account,"2,145.71"
2249549,Comensura Ltd,19/09/2011,53102,Agency Staff  Other,Children's Services,Business Support  Children Social Care,518.58
2249549,Comensura Ltd,19/09/2011,53102,Agency Staff  Other,Finance Department,C.R.M. Operations,"5,404.89"
2249549,Comensura Ltd,19/09/2011,53102,Agency Staff  Other,Housing GRF,Homes for You,566.31
2249549,Comensura Ltd,19/09/2011,53102,Agency Staff  Other,Property Services,Operational Facilities Management,"1,992.82"
2249549,Comensura Ltd,19/09/2011,53102,Agency Staff  Other,Property Services,Projects,"2,063.33"
2249549,Comensura Ltd,19/09/2011,53102,Agency Staff  Other,Legal Trading,Legal Services Trading Account,638.75
2247159,Community Care Options#3,15/09/2011,52200,Contracted Services,Adult Services,PD Purcahser Domiciliary Care,"1,256.28"
2244470,Community Care Options#3,12/09/2011,52200,Contracted Services,Adult Services,PD Purcahser Domiciliary Care,"1,980.45"
2244476,Community Care Options#3,12/09/2011,52200,Contracted Services,Adult Services,PD Purcahser Domiciliary Care,606.48
2244478,Community Care Options#3,12/09/2011,52200,Contracted Services,Adult Services,PD Purcahser Domiciliary Care,850.50
2259634,Concept Heating,29/09/2011,Z1051,Work in Progress Additions,Housing GRF,Capital  General Fund,"1,250.00"
2242430,Cornerstone Trust,06/09/2011,54301,Residential Provision,Adult Services,LD Purchaser Residential Care,"18,540.00"
2242491,Cotebrook,06/09/2011,54301,Residential Provision,Adult Services,PD Purchaser Residential Care,"1,964.00"
2242889,Coutts Information Services Ltd,15/09/2011,40753,Book Fund Expenditure,Adult Services,Information Services,858.60
2251250,Craven Roofing Contractors,22/09/2011,20100,Day To Day Maintenance,Central Corporate,Land & Property,"18,490.00"
2244382,Creative Support Ltd#3,12/09/2011,52000,Vol Assoc Grants  General,Children's Services,Res Serv Agency Placements,"22,713.60"
2247765,Criminal Records Bureau#CRB,15/09/2011,19400,Disclosure Monitoring,Chief Executives Department,HR  Resourcing & Policy,"13,626.00"
2248476,Criminal Records Bureau#CRB,15/09/2011,19400,Disclosure Monitoring,Chief Executives Department,Licensing (Client),"2,860.00"
2244463,Crossroads Care Bolton#BRISC,12/09/2011,52200,Contracted Services,Adult Services,OA  Home Care Services external provision,"20,125.07"
2260670,D C Builders,29/09/2011,Z1051,Work in Progress Additions,Housing GRF,Capital  General Fund,"4,650.00"
2248969,D C Builders,15/09/2011,Z1051,Work in Progress Additions,Housing GRF,Capital  General Fund,"5,679.00"
2250261,D2 Digital By Design Ltd#1,19/09/2011,48509,Other Fees,Adult Services,LMA External Funded Projects,"15,000.00"
2246329,DP Cold Planing Limited,22/09/2011,Z6008,Expense AP Accrual,Bolton MBC Balance Sheet,Bolton MBC Balance Sheet,"2,000.00"
2252109,DVLA,22/09/2011,31300,Vehicle Tax,Environmental Services,Transport Support Service,518.00
2247713,Danvic Turf Care Ltd,29/09/2011,20503,Strategic Landscape,Environmental Services,Greenspace,"1,605.00"
2248376,Dataspace,15/09/2011,48506,Records Storage,Legal Trading,Legal Services Trading Account,600.63
2252579,Deafness Resource Centre Limited,29/09/2011,48509,Other Fees,Adult Services,AD Sensory Impairment,599.50
2252581,Deafness Resource Centre Limited,29/09/2011,48509,Other Fees,Adult Services,AD Sensory Impairment,617.25
2242467,Deanwood Manor Care Home,06/09/2011,54302,Nursing Provision,Adult Services,OA  External Provision Residential,"1,332.88"
2257241,Delaware Communications Plc,29/09/2011,20100,Day To Day Maintenance,Housing Revenue Account,HRA North,"15,612.50"
2248657,Disabled Living#2,29/09/2011,44051,Clients Aids & Adaptations,Adult Services,AD ICES,"1,300.00"
2242454,Dolphinlee House,06/09/2011,54301,Residential Provision,Adult Services,OA  External Provision Residential,"1,866.00"
2242471,Douglas Bank Nursing Home#Tudor Bank Ltd,06/09/2011,54302,Nursing Provision,Adult Services,OA  External Provision Residential,"1,906.60"
2242452,Dove Court Residential & Nursing Home,06/09/2011,54301,Residential Provision,Adult Services,OA  External Provision Residential,"1,462.00"
2242469,Downshaw Lodge,06/09/2011,54302,Nursing Provision,Adult Services,OA  External Provision Residential,"1,960.92"
2252574,REDACTED - PERSONAL DATA,22/09/2011,48509,Other Fees,Children's Services,Admin General,600.00
2244404,Drs. Direct Ltd#Bibby Factors Leicester Limited,12/09/2011,53100,Agency Staff  Fulltime,Chief Executives Department,Personnel Svs Occ Health Unit,900.00
2244403,Drs. Direct Ltd#Bibby Factors Leicester Limited,12/09/2011,53100,Agency Staff  Fulltime,Chief Executives Department,Personnel Svs Occ Health Unit,900.00
2244397,Drs. Direct Ltd#Bibby Factors Leicester Limited,12/09/2011,53100,Agency Staff  Fulltime,Chief Executives Department,Personnel Svs Occ Health Unit,900.00
2244399,Drs. Direct Ltd#Bibby Factors Leicester Limited,12/09/2011,53100,Agency Staff  Fulltime,Chief Executives Department,Personnel Svs Occ Health Unit,900.00
2250603,Duval Security,19/09/2011,44401,Other Security Expenses,Environmental Services,Markets  Rent Account,"2,163.04"
2255171,E.ON Energy#2,26/09/2011,21100,Electricity  General,Housing Revenue Account,Housing Revenue Account,520.45
2242981,E.ON Energy#2,05/09/2011,21200,Gas  General,Housing Revenue Account,Housing Revenue Account,673.95
2251941,ECE Consultancy Ltd,22/09/2011,20500,R & M Cremators,Environmental Services,Bereavement Services,"3,194.70"
2247000,EDF Energy,14/09/2011,21100,Electricity  General,Central Corporate,Land & Property,"5,025.80"
2248991,EMB Consultants Ltd,15/09/2011,Z1051,Work in Progress Additions,Environmental Services,Environmental Services Balance sheet,"2,000.00"
2259957,Easycare Ltd,29/09/2011,52200,Contracted Services,Adult Services,OA  Home Care Services external provision,"5,677.99"
2251795,Easycare Ltd,22/09/2011,52200,Contracted Services,Adult Services,OA  Home Care Services external provision,"10,317.57"
2242435,Ecclesholme,06/09/2011,54301,Residential Provision,Adult Services,OA  External Provision Residential,"1,506.04"
2244243,Ecomix Concrete Ltd,19/09/2011,Z6008,Expense AP Accrual,Bolton MBC Balance Sheet,Bolton MBC Balance Sheet,674.50
2247104,Ecomix Concrete Ltd,22/09/2011,Z6008,Expense AP Accrual,Bolton MBC Balance Sheet,Bolton MBC Balance Sheet,"1,199.00"
2248850,Ecomix Concrete Ltd,29/09/2011,Z6008,Expense AP Accrual,Bolton MBC Balance Sheet,Bolton MBC Balance Sheet,959.25
2243091,Ecomix Concrete Ltd,12/09/2011,Z6008,Expense AP Accrual,Bolton MBC Balance Sheet,Bolton MBC Balance Sheet,"1,660.00"
2243090,Ecomix Concrete Ltd,12/09/2011,Z6008,Expense AP Accrual,Bolton MBC Balance Sheet,Bolton MBC Balance Sheet,838.00
2243089,Ecomix Concrete Ltd,12/09/2011,Z6008,Expense AP Accrual,Bolton MBC Balance Sheet,Bolton MBC Balance Sheet,850.50
2247044,Electricity North West#United Utilities Electricity Services Ltd,12/09/2011,Z1051,Work in Progress Additions,Housing GRF,Capital  General Fund,928.83
2254707,Electricity North West#United Utilities Electricity Services Ltd,29/09/2011,Z1051,Work in Progress Additions,Highways,Stores,520.00
2254711,Electricity North West#United Utilities Electricity Services Ltd,29/09/2011,Z1051,Work in Progress Additions,Highways,Stores,520.00
2256591,Electricity North West#United Utilities Electricity Services Ltd,26/09/2011,Z1051,Work in Progress Additions,Environmental Services,Environmental Services Balance sheet,"49,677.22"
2256554,Electricity North West#United Utilities Electricity Services Ltd,29/09/2011,20501,Engineering Work,Environmental Services,Highway Services,680.00
2243945,Electricity North West#United Utilities Electricity Services Ltd,22/09/2011,20501,Engineering Work,Environmental Services,Highway Services,520.00
2243949,Electricity North West#United Utilities Electricity Services Ltd,08/09/2011,20501,Engineering Work,Environmental Services,Highway Services,520.00
2243950,Electricity North West#United Utilities Electricity Services Ltd,08/09/2011,20501,Engineering Work,Environmental Services,Highway Services,520.00
2243952,Electricity North West#United Utilities Electricity Services Ltd,08/09/2011,20501,Engineering Work,Environmental Services,Highway Services,520.00
2243953,Electricity North West#United Utilities Electricity Services Ltd,08/09/2011,20501,Engineering Work,Environmental Services,Highway Services,520.00
2243956,Electricity North West#United Utilities Electricity Services Ltd,08/09/2011,20501,Engineering Work,Environmental Services,Highway Services,520.00
2251839,Elite Storage Ltd,22/09/2011,40100,Operational Equipment Purchase,Children's Services,Sport & Active Living � General,"1,250.00"
2242418,Ellershaw House Ltd,06/09/2011,54301,Residential Provision,Adult Services,LD Purchaser Residential Care,"9,098.36"
2251938,Emo Oil Ltd#Was Shell Oil,22/09/2011,31301,Vehicle Fuel,Environmental Services,Bereavement Services,862.55
2249193,Engineering Service Co,19/09/2011,20100,Day To Day Maintenance,Environmental Services,Greenspace,595.34
2255174,Environment Agency,26/09/2011,47200,General Subscriptions,Property Services,CRC  Carbon Trading,"1,290.00"
2242409,Epworth Grange,06/09/2011,54301,Residential Provision,Adult Services,OA  External Provision Residential,"1,583.56"
2247006,Estates & Management Limited,14/09/2011,Z1051,Work in Progress Additions,Development & Regen,Development & Regeneration Capital,"15,000.00"
2244417,European Wellcare EDUCATION Ltd,12/09/2011,52200,Contracted Services,Adult Services,LD Purchaser Day Services,"3,514.00"
2250614,Experian Limited#T/A Footfall Ltd,19/09/2011,48631,Office Expenses  General,Finance Department,Council Tax,"5,331.00"
2243028,Fine Turf Services#FTS,22/09/2011,53000,Private Contracted Services,Environmental Services,Greenspace,"2,300.00"
2251793,First Call Community Systems Ltd t/a SureCare,22/09/2011,52200,Contracted Services,Adult Services,OA  Home Care Services external provision,"43,795.37"
2251794,First Call Community Systems Ltd t/a SureCare,22/09/2011,52200,Contracted Services,Adult Services,OA  Home Care Services external provision,"43,907.10"
2251294,Fitness Systems Ltd,19/09/2011,40100,Operational Equipment Purchase,Finance Department,Bolton Sports Village,"1,960.00"
2251294,Fitness Systems Ltd,19/09/2011,40100,Operational Equipment Purchase,Central Corporate,Bolton Sports Village,"3,780.00"
2249128,Five Rivers Child Care Limited,26/09/2011,52000,Vol Assoc Grants  General,Children's Services,Res Serv Agency Placements,"3,561.30"
2249021,Fools Paradise Ltd,22/09/2011,48203,Marketing,Central Services,Marketing  Development,730.00
2244352,Fools Paradise Ltd,22/09/2011,48203,Marketing,Central Services,Marketing  Development,"3,270.00"
2249040,Fools Paradise Ltd,29/09/2011,48203,Marketing,Central Services,Marketing  Development,695.00
2247800,Foster CARES Ltd,26/09/2011,52000,Vol Assoc Grants  General,Children's Services,Res Serv Agency Placements,938.40
2246357,Foster CARES Ltd,22/09/2011,52000,Vol Assoc Grants  General,Children's Services,Res Serv Agency Placements,938.40
2243107,Foster Refrigerator,26/09/2011,40100,Operational Equipment Purchase,Adult Services,OA  Community Meals,"1,667.00"
2242364,Four Seasons Nursing Home,06/09/2011,54302,Nursing Provision,Adult Services,OA  External Provision Residential,784.16
2242365,Four Seasons Nursing Home,06/09/2011,54301,Residential Provision,Adult Services,OA  External Provision Residential,"29,427.29"
2242365,Four Seasons Nursing Home,06/09/2011,54301,Residential Provision,Adult Services,PD Purchaser Residential Care,"9,179.88"
2242365,Four Seasons Nursing Home,06/09/2011,54302,Nursing Provision,Adult Services,OA  External Provision Residential,"38,497.44"
2242365,Four Seasons Nursing Home,06/09/2011,54302,Nursing Provision,Adult Services,LD Purchaser Residential Care,"1,514.64"
2251942,G & K Refractories Ltd,22/09/2011,20500,R & M Cremators,Environmental Services,Bereavement Services,"1,245.00"
2254383,G & S Smirthwaite Ltd,26/09/2011,44051,Clients Aids & Adaptations,Adult Services,AD ICES,736.00
2254454,Gag Reflex Ltd,26/09/2011,48501,Artistes Fees,Adult Services,Albert Halls  Entertainments,780.00
2250100,Gardiner & Theobald LLP,19/09/2011,52200,Contracted Services,Property Services,Projects,"1,900.00"
2249109,Garic Ltd,29/09/2011,33201,Transport Hire,Environmental Services,Transport Support Service,"1,219.00"
2244876,Gaskell McDowall Construction,12/09/2011,Z1051,Work in Progress Additions,Property Services,Corporate Property Capital Project Transfers to Other Projects,"34,125.00"
2242367,Glenbank Care Home Ltd,06/09/2011,54301,Residential Provision,Adult Services,OA  External Provision Residential,"18,532.48"
2242367,Glenbank Care Home Ltd,06/09/2011,54301,Residential Provision,Adult Services,PD Purchaser Residential Care,"1,493.52"
2242413,Glenhomes Rest Home,06/09/2011,54301,Residential Provision,Adult Services,OA  External Provision Residential,"1,352.36"
2242414,Glenhomes Rest Home,06/09/2011,54301,Residential Provision,Adult Services,OA  External Provision Residential,"17,962.68"
2242414,Glenhomes Rest Home,06/09/2011,54301,Residential Provision,Adult Services,LD Purchaser Residential Care,"1,493.52"
2246358,Good People Services Limited,12/09/2011,53102,Agency Staff  Other,Development & Regen,Coalfields,"2,050.00"
2242368,Gorsey Clough Nursing Home Ltd,06/09/2011,54301,Residential Provision,Adult Services,OA  External Provision Residential,"1,583.56"
2242368,Gorsey Clough Nursing Home Ltd,06/09/2011,54302,Nursing Provision,Adult Services,OA  External Provision Residential,"12,668.48"
2247121,REDACTED - PERSONAL DATA,12/09/2011,Z1051,Work in Progress Additions,Housing GRF,Capital  General Fund,"5,650.00"
2242369,Grange Lea Residential Care Home Ltd,06/09/2011,54301,Residential Provision,Adult Services,OA  External Provision Residential,757.32
2242370,Grange Lea Residential Care Home Ltd,06/09/2011,54301,Residential Provision,Adult Services,OA  External Provision Residential,"26,721.30"
2244068,Great Places Housing Association,08/09/2011,Z1051,Work in Progress Additions,Development & Regen,Development & Regeneration Capital,"5,400.00"
2247151,Great Places Housing Association,12/09/2011,Z1051,Work in Progress Additions,Housing Revenue Account,Capital  HRA,"682,966.88"
2243797,Greater Manchester Industrial Mission Trust,08/09/2011,47103,Miscellaneous Grants,Chief Executives Department,Voluntary Sector Grants,"11,250.00"
2247558,Greenbooth Construction Co Ltd,15/09/2011,20501,Engineering Work,Environmental Services,Highway Management,619.46
2247559,Greenbooth Construction Co Ltd,15/09/2011,20501,Engineering Work,Environmental Services,Highway Management,751.26
2247578,Greenbooth Construction Co Ltd,15/09/2011,20501,Engineering Work,Environmental Services,Highway Management,950.14
2247568,Greenbooth Construction Co Ltd,15/09/2011,20501,Engineering Work,Environmental Services,Lighting / Stores Billable Costs,617.28
2247571,Greenbooth Construction Co Ltd,15/09/2011,20501,Engineering Work,Environmental Services,Highway Services,507.13
2247575,Greenbooth Construction Co Ltd,15/09/2011,20501,Engineering Work,Environmental Services,Highway Services,909.72
2247564,Greenbooth Construction Co Ltd,15/09/2011,20501,Engineering Work,Environmental Services,Lighting / Stores Billable Costs,680.00
2247566,Greenbooth Construction Co Ltd,15/09/2011,20501,Engineering Work,Environmental Services,Lighting / Stores Billable Costs,"1,186.75"
2247801,Greenfields Adolescent Development Ltd,29/09/2011,52000,Vol Assoc Grants  General,Children's Services,Res Serv Agency Placements,"2,271.42"
2243075,Greenfields Adolescent Development Ltd,08/09/2011,52000,Vol Assoc Grants  General,Children's Services,Res Serv Agency Placements,"4,542.86"
2243611,Greenlands Residential Home#Mrs A Khan & Mrs S Hussain2,06/09/2011,54301,Residential Provision,Adult Services,OA  External Provision Residential,"24,455.90"
2243933,H C Slingsby plc,08/09/2011,40601,General Materials,Adult Services,LMA External Funded Projects,744.04
2243015,HBJ Boxmakers Limited,26/09/2011,40100,Operational Equipment Purchase,Adult Services,Community Meals,723.72
2242397,Haighfield Nursing Home,06/09/2011,54302,Nursing Provision,Adult Services,OA  External Provision Residential,"1,494.08"
2242444,Half Acre Care Centre,06/09/2011,54301,Residential Provision,Adult Services,OA  External Provision Residential,"1,543.56"
2249015,Halton Container Services Ltd,29/09/2011,53000,Private Contracted Services,Environmental Services,Waste,"1,206.90"
2249018,Halton Container Services Ltd,29/09/2011,53000,Private Contracted Services,Environmental Services,Trade Waste,"2,576.40"
2242460,Harbour Close,06/09/2011,54301,Residential Provision,Adult Services,PD Purchaser Residential Care,"3,877.88"
2248940,Hardscape Products Ltd,15/09/2011,Z6008,Expense AP Accrual,Bolton MBC Balance Sheet,Bolton MBC Balance Sheet,"1,040.61"
2243912,Hardscape Products Ltd,12/09/2011,Z6008,Expense AP Accrual,Bolton MBC Balance Sheet,Bolton MBC Balance Sheet,"3,554.13"
2243913,Hardscape Products Ltd,12/09/2011,Z6008,Expense AP Accrual,Bolton MBC Balance Sheet,Bolton MBC Balance Sheet,"4,468.70"
2243914,Hardscape Products Ltd,12/09/2011,Z6008,Expense AP Accrual,Bolton MBC Balance Sheet,Bolton MBC Balance Sheet,"4,461.07"
2243915,Hardscape Products Ltd,12/09/2011,Z6008,Expense AP Accrual,Bolton MBC Balance Sheet,Bolton MBC Balance Sheet,"2,074.60"
2260148,Harmony Youth Project,29/09/2011,47103,Miscellaneous Grants,Chief Executives Department,Voluntary Sector Grants,"1,000.00"
2243961,Harrow Green Group,22/09/2011,Z1051,Work in Progress Additions,Adult Services,Adult Services Balance Sheet,662.60
2259978,Harwood Heating Services Ltd,29/09/2011,Z1051,Work in Progress Additions,Housing GRF,Capital  General Fund,"1,666.67"
2242473,Haylands Residential Home,06/09/2011,54301,Residential Provision,Adult Services,OA  External Provision Residential,"1,481.92"
2254393,Heartlift#Andrea Wood,26/09/2011,52200,Contracted Services,Children's Services,Admin Commissioning,"28,800.00"
2254394,Heartlift#Andrea Wood,26/09/2011,52200,Contracted Services,Children's Services,Admin Commissioning,"4,352.00"
2251867,Heineken UK Limited#Pay EH54 8AG,22/09/2011,41106,Bar Stock,Adult Services,Civic Catering Town Hall Bar,554.12
2247185,Helping Hand Co (Ledbury) Ltd,22/09/2011,44051,Clients Aids & Adaptations,Adult Services,AD ICES,612.50
2248636,Henry Alty Limited,26/09/2011,40609,Horticultural Materials,Environmental Services,Heaton Fold,542.94
2242371,Henshaws Society For The Blind,06/09/2011,54301,Residential Provision,Adult Services,PD Purchaser Residential Care,"2,946.72"
2242466,Highfield House Care Home#Factor Dhillon Financila Services (UK) Ltd,06/09/2011,54301,Residential Provision,Adult Services,OA  External Provision Residential,"1,378.00"
2242395,Hillcrest,06/09/2011,54301,Residential Provision,Adult Services,OA  External Provision Residential,"1,650.36"
2243612,Hillcrest Care Ltd,06/09/2011,54301,Residential Provision,Adult Services,LD Purchaser Residential Care,"4,870.72"
2244250,Holgate House Limited,22/09/2011,54301,Residential Provision,Adult Services,Drugs External Provision,"1,751.94"
2244249,Holgate House Limited,22/09/2011,54301,Residential Provision,Adult Services,Drugs External Provision,"1,782.94"
2249075,Holgate House Limited,29/09/2011,52200,Contracted Services,Adult Services,Drugs Action Team,"1,751.94"
2249074,Holgate House Limited,29/09/2011,52200,Contracted Services,Adult Services,Drugs Action Team,"1,782.94"
2244251,Holgate House Limited,22/09/2011,52200,Contracted Services,Adult Services,Drugs Action Team,992.10
2242375,Hollands Nursing Home,06/09/2011,54301,Residential Provision,Adult Services,OA  External Provision Residential,"5,974.08"
2242375,Hollands Nursing Home,06/09/2011,54301,Residential Provision,Adult Services,PD Purchaser Residential Care,"4,887.04"
2242375,Hollands Nursing Home,06/09/2011,54301,Residential Provision,Adult Services,MH Residential External Provision,"5,061.36"
2242375,Hollands Nursing Home,06/09/2011,54302,Nursing Provision,Adult Services,OA  External Provision Residential,"1,493.52"
2242375,Hollands Nursing Home,06/09/2011,54302,Nursing Provision,Adult Services,PD Purchaser Residential Care,"4,032.00"
2242375,Hollands Nursing Home,06/09/2011,54302,Nursing Provision,Adult Services,MH Residential External Provision,"8,420.08"
2243613,Holtwood House#Factor ARC Adventure (Bury) Ltd,06/09/2011,54301,Residential Provision,Adult Services,LD Purchaser Residential Care,"8,241.80"
2247555,Homecraft Rolyan#Patterson Medical Ltd,22/09/2011,44051,Clients Aids & Adaptations,Adult Services,AD ICES,990.84
2243614,Homelea Residential Care Home,06/09/2011,54301,Residential Provision,Adult Services,OA  External Provision Residential,"1,772.12"
2243082,Housing Partners Ltd,05/09/2011,45431,Computer Software Licences,Housing GRF,Access & Advice Choice Based Lettings,500.00
2242362,Hyde  Lea,06/09/2011,54301,Residential Provision,Adult Services,OA  External Provision Residential,"3,817.44"
2242363,Hyde  Lea,06/09/2011,54301,Residential Provision,Adult Services,OA  External Provision Residential,"23,033.12"
2244377,I L Sargent Decorators,12/09/2011,20105,Painting & Decorating,Property Services,Westhoughton Area Office,550.00
2243798,IDOX Software Ltd,08/09/2011,45431,Computer Software Licences,Development & Regen,Spatial Data  from GIS,"17,454.55"
2242967,IHS (Global) Limited,05/09/2011,47200,General Subscriptions,Property Services,Projects,"17,080.00"
2248625,Iken Business Ltd,15/09/2011,45431,Computer Software Licences,Central Services,Director of Chief Executives Dept.,829.85
2243826,Indespension Ltd#2,08/09/2011,40100,Operational Equipment Purchase,Environmental Services,Greenspace,716.30
2249906,Initial Washroom Solutions,26/09/2011,26001,Hygiene Requisite,Adult Services,Smithills Hall Museum,509.22
2259952,Inspirit Care (Bolton),29/09/2011,52200,Contracted Services,Adult Services,OA  Home Care Services external provision,"24,890.26"
2255175,Integral UK Ltd,26/09/2011,20100,Day To Day Maintenance,Central Corporate,Bolton Enterprise Centre,"2,673.36"
2246369,Irwell Valley Housing Association,22/09/2011,52000,Vol Assoc Grants  General,Children's Services,Res Serv Agency Placements,509.72
2259627,J & L Prince Builders,29/09/2011,Z1051,Work in Progress Additions,Housing GRF,Capital  General Fund,"6,818.43"
2245065,J Bryan (Victoria) Ltd,12/09/2011,Z1051,Work in Progress Additions,Development & Regen,Development & Regeneration Capital,"10,461.51"
2245065,J Bryan (Victoria) Ltd,12/09/2011,20100,Day To Day Maintenance,Central Corporate,Land & Property,"1,743.58"
2245065,J Bryan (Victoria) Ltd,12/09/2011,Z1051,Work in Progress Additions,Central Corporate,Corporate Property Balance Sheet,"5,230.76"
2242935,J Dickinson & Sons (Horwich) Ltd#2,05/09/2011,40601,General Materials,Environmental Services,Greenspace,"1,083.88"
2243077,J Dickinson & Sons (Horwich) Ltd#2,05/09/2011,40601,General Materials,Environmental Services,Greenspace,663.60
2243078,J Dickinson & Sons (Horwich) Ltd#2,05/09/2011,40601,General Materials,Environmental Services,Greenspace,503.96
2251952,J Dickinson & Sons (Horwich) Ltd#2,22/09/2011,26106,Refuse Collection,Environmental Services,Bereavement Services,610.90
2252700,J Dickinson & Sons (Horwich) Ltd#2,22/09/2011,26106,Refuse Collection,Environmental Services,Greenspace,831.00
2260160,J Dickinson & Sons (Horwich) Ltd#2,29/09/2011,33202,Plant Hire,Environmental Services,Highway Services,"1,233.00"
2246352,J Dickinson & Sons (Horwich) Ltd#2,12/09/2011,20501,Engineering Work,Environmental Services,Highways Managers,597.39
2246353,J Dickinson & Sons (Horwich) Ltd#2,12/09/2011,20501,Engineering Work,Environmental Services,Highways Managers,"1,106.55"
2244241,J Dickinson & Sons (Horwich) Ltd#2,12/09/2011,20501,Engineering Work,Environmental Services,Highways Managers,"1,847.26"
2244242,J Dickinson & Sons (Horwich) Ltd#2,12/09/2011,20501,Engineering Work,Environmental Services,Highways Managers,"1,005.50"
2247101,J Dickinson & Sons (Horwich) Ltd#2,12/09/2011,40601,General Materials,Environmental Services,Greenspace,599.54
2247103,J Dickinson & Sons (Horwich) Ltd#2,12/09/2011,40601,General Materials,Environmental Services,Greenspace,"1,819.63"
2243088,J Dickinson & Sons (Horwich) Ltd#2,05/09/2011,Z6008,Expense AP Accrual,Bolton MBC Balance Sheet,Bolton MBC Balance Sheet,620.89
2248616,J Hopkins (Contractors) Ltd,29/09/2011,Z6008,Expense AP Accrual,Bolton MBC Balance Sheet,Bolton MBC Balance Sheet,"55,720.29"
2245542,J Phillips & Sons Ltd#1,12/09/2011,20105,Painting & Decorating,Adult Services,Prop. Servs. Winifred Kettle,"5,369.65"
2256423,J Taylor (Electrical Contractors) Ltd,26/09/2011,Z1051,Work in Progress Additions,Adult Services,Adult Services Balance Sheet,"2,576.60"
2247111,JCM Seating Solutions,22/09/2011,44051,Clients Aids & Adaptations,Adult Services,AD ICES,"1,277.00"
2260696,Jack Smith & Sons Ltd,29/09/2011,Z1051,Work in Progress Additions,Housing GRF,Capital  General Fund,"46,126.30"
2242427,Jah-Jireh (Blackpool),06/09/2011,54301,Residential Provision,Adult Services,OA  External Provision Residential,"1,498.96"
2243615,Jah-Jireh (Leyland),06/09/2011,54301,Residential Provision,Adult Services,OA  External Provision Residential,"1,556.00"
2260173,REDACTED - PERSONAL DATA,29/09/2011,48502,Legal Fees,Children's Services,Management Team,600.00
2247794,Jo Hossle-Standring T/a Jorchid,15/09/2011,53100,Agency Staff  Fulltime,Chief Executives Department,Personnel Svs Occ Health Unit,"1,040.00"
2247799,Jo Hossle-Standring T/a Jorchid,15/09/2011,53100,Agency Staff  Fulltime,Chief Executives Department,Personnel Svs Occ Health Unit,"1,040.00"
2248526,REDACTED - PERSONAL DATA,15/09/2011,Z1051,Work in Progress Additions,Property Services,Property Services Balance Sheet,725.00
2248600,REDACTED - PERSONAL DATA,15/09/2011,48502,Legal Fees,Central Services,Wigan Equal Pay  Legal Services,"27,499.99"
2249163,KPMG LLP,26/09/2011,48519,External Audit Fees,Finance Department,Financial Management,"5,312.50"
2249160,KPMG LLP,29/09/2011,48519,External Audit Fees,Finance Department,Financial Management,"66,667.50"
2249174,Kaleidoscope Care (Northwest) Ltd,19/09/2011,52000,Vol Assoc Grants  General,Children's Services,Res Serv Agency Placements,"9,600.00"
2251988,Kays Traffic Management Systems Ltd,22/09/2011,Z6008,Expense AP Accrual,Bolton MBC Balance Sheet,Bolton MBC Balance Sheet,800.00
2244378,Kellibrations by Kelly Dooley,12/09/2011,48509,Other Fees,Adult Services,Civic Catering Town Hall Functions,586.00
2242405,Kenyon Lodge,06/09/2011,54301,Residential Provision,Adult Services,OA  External Provision Residential,"1,329.56"
2243068,Killgerm Chemicals Ltd,22/09/2011,40605,Chemicals,Environmental Services,Pest Control,"1,478.85"
2242416,Knightswood Residential Home,06/09/2011,54301,Residential Provision,Adult Services,OA  External Provision Residential,"10,750.76"
2242964,LPW (Europe) Ltd,22/09/2011,31305,Vehicle Servicing,Environmental Services,Transport Support Service,945.00
2242372,Ladymead Nursing Home#Factor Icon Healthcare (UK) Limited,06/09/2011,54301,Residential Provision,Adult Services,OA  External Provision Residential,"7,444.68"
2242372,Ladymead Nursing Home#Factor Icon Healthcare (UK) Limited,06/09/2011,54302,Nursing Provision,Adult Services,LD Purchaser Residential Care,"1,493.52"
2243870,Lagan Technologies Ltd,08/09/2011,45107,Voice Network Management,Finance Department,C.R.M. Operations,"8,650.00"
2243869,Lagan Technologies Ltd,08/09/2011,45107,Voice Network Management,Finance Department,C.R.M. Operations,"9,200.00"
2243868,Lagan Technologies Ltd,08/09/2011,45107,Voice Network Management,Finance Department,C.R.M. Operations,"13,800.00"
2248984,Lagan Technologies Ltd,29/09/2011,48510,Consultancy Fees,Finance Department,T&B Systems Project Team,"2,000.00"
2242465,Lake View Care Home,06/09/2011,54302,Nursing Provision,Adult Services,OA  External Provision Residential,"3,732.00"
2250608,Last Drop Village Hotel and Spa#Mercure,19/09/2011,46001,Staff Hotel Expenses,Chief Executives Department,HR  Childrens Services,675.00
2250184,Laundryserv#PHS Group,19/09/2011,42002,Laundry,Adult Services,OA Merton  Extra Care Housing,515.18
2250183,Laundryserv#PHS Group,19/09/2011,42002,Laundry,Adult Services,OA Eldon Street  Extra Care Housing,"1,523.36"
2259227,Leigh Dogs and Cats Home Ltd,29/09/2011,53000,Private Contracted Services,Environmental Services,Education & Enforcement,"1,347.00"
2242488,Lever Edge Care Home,06/09/2011,54301,Residential Provision,Adult Services,OA  External Provision Residential,"92,539.88"
2242488,Lever Edge Care Home,06/09/2011,54301,Residential Provision,Adult Services,PD Purchaser Residential Care,"1,514.64"
2252058,Leverhulme Kids Club,22/09/2011,44054,Other Clients Services,Children's Services,Referral & Assmt Team South,504.00
2242483,Little Sisters of the Poor,06/09/2011,54301,Residential Provision,Adult Services,OA  External Provision Residential,"1,629.52"
2256845,Lockwood Press Limited,26/09/2011,48200,Advertising General,Environmental Services,Markets  Rent Account,935.00
2242482,Lyndhurst,06/09/2011,54301,Residential Provision,Adult Services,OA  External Provision Residential,"1,790.25"
2242374,Lyngate Residential Home,06/09/2011,54301,Residential Provision,Adult Services,OA  External Provision Residential,"32,808.70"
2242373,Lyngate Residential Home,06/09/2011,54301,Residential Provision,Adult Services,OA  External Provision Residential,839.59
2259958,Making Space#4,29/09/2011,52200,Contracted Services,Adult Services,OA  Home Care Services external provision,"4,630.84"
2248668,Malcolm Nicholson & Son,15/09/2011,36200,Uninsured Losses  Vehicles,Environmental Services,Transport Support Service,570.70
2246768,Maltbury Ltd,22/09/2011,20102,Health & Safety,Property Services,Albert Halls Complex,"5,299.55"
2242461,Manor Care Centre,06/09/2011,54301,Residential Provision,Adult Services,OA  External Provision Residential,"1,656.00"
2242485,Mariana House,06/09/2011,54301,Residential Provision,Adult Services,OA  External Provision Residential,"1,562.16"
2244474,Mark Mangnall & Son,12/09/2011,20100,Day To Day Maintenance,Adult Services,Prop. Servs. Firwood,886.33
2249231,Mark Mangnall & Son,19/09/2011,20100,Day To Day Maintenance,Environmental Services,Depots,705.00
2251875,Mark Mangnall & Son,22/09/2011,20100,Day To Day Maintenance,Environmental Services,Depots,"1,366.61"
2242417,Marley Court  Nursing & Residentail Home,06/09/2011,54301,Residential Provision,Adult Services,OA  External Provision Residential,"6,224.00"
2243093,Marwood Group Limited,19/09/2011,33202,Plant Hire,Environmental Services,Highways Maintenance Billable Costs,"1,400.00"
2250601,Mat Cahill#Art Workshop Specialist,19/09/2011,48509,Other Fees,Children's Services,Artists in Schools  Bolton,541.00
2242428,Meadow Bank House,06/09/2011,54301,Residential Provision,Adult Services,OA  External Provision Residential,"19,960.79"
2242428,Meadow Bank House,06/09/2011,54302,Nursing Provision,Adult Services,OA  External Provision Residential,"4,543.92"
2243001,MediaCom North Ltd,22/09/2011,48203,Marketing,Central Services,Marketing  Development,"3,220.72"
2243993,Michael Grant T/A MRG Heating & Plumbing,08/09/2011,Z1051,Work in Progress Additions,Housing GRF,Capital  General Fund,"3,793.00"
2243990,Michael Grant T/A MRG Heating & Plumbing,08/09/2011,Z1051,Work in Progress Additions,Housing GRF,Capital  General Fund,"4,156.00"
2243917,Midequip Ltd,22/09/2011,44051,Clients Aids & Adaptations,Adult Services,AD ICES,739.20
2243133,Miller Metcalfe,05/09/2011,44054,Other Clients Services,Housing GRF,Access & Advice Home Ownership,625.00
2242437,Millview Nursing Home,06/09/2011,54301,Residential Provision,Adult Services,OA  External Provision Residential,"90,817.11"
2242437,Millview Nursing Home,06/09/2011,54301,Residential Provision,Adult Services,LD Purchaser Residential Care,"2,987.04"
2242437,Millview Nursing Home,06/09/2011,54302,Nursing Provision,Adult Services,OA  External Provision Residential,"39,088.92"
2242437,Millview Nursing Home,06/09/2011,54302,Nursing Provision,Adult Services,PD Purchaser Residential Care,"2,987.04"
2242436,Millview Nursing Home,06/09/2011,54301,Residential Provision,Adult Services,OA  External Provision Residential,"2,702.51"
2251292,Mint Northwest Ltd,19/09/2011,Z1051,Work in Progress Additions,Housing GRF,Capital  General Fund,"8,729.90"
2251291,Mint Northwest Ltd,19/09/2011,Z1051,Work in Progress Additions,Housing GRF,Capital  General Fund,"8,815.28"
2260689,Mint Northwest Ltd,29/09/2011,Z1051,Work in Progress Additions,Housing GRF,Capital  General Fund,553.35
2243994,Mint Northwest Ltd,15/09/2011,Z1051,Work in Progress Additions,Housing GRF,Capital  General Fund,"10,150.94"
2247124,Mint Northwest Ltd,12/09/2011,Z1051,Work in Progress Additions,Housing GRF,Capital  General Fund,"7,664.00"
2252079,REDACTED - PERSONAL DATA,22/09/2011,48502,Legal Fees,Children's Services,Management Team,"1,750.00"
2260159,REDACTED - PERSONAL DATA,29/09/2011,48502,Legal Fees,Development & Regen,Development Management,675.00
2259631,Morgan Heating Engineers,29/09/2011,Z1051,Work in Progress Additions,Housing GRF,Capital  General Fund,"3,000.00"
2248622,REDACTED - PERSONAL DATA,15/09/2011,48502,Legal Fees,Central Services,Legal Services Holding Code,"1,850.00"
2246090,REDACTED - PERSONAL DATA,12/09/2011,48509,Other Fees,Children's Services,AiS  Service Level Agreement,504.26
2248505,REDACTED - PERSONAL DATA,29/09/2011,48509,Other Fees,Children's Services,Artists in Schools  Bolton,500.00
2246095,REDACTED - PERSONAL DATA,12/09/2011,48509,Other Fees,Children's Services,AiS  Service Level Agreement,857.52
2260277,REDACTED - PERSONAL DATA,29/09/2011,48502,Legal Fees,Children's Services,Management Team,"1,300.00"
2248442,REDACTED - PERSONAL DATA,15/09/2011,48502,Legal Fees,Children's Services,Management Team,"3,700.00"
2251992,REDACTED - PERSONAL DATA,22/09/2011,48502,Legal Fees,Children's Services,Management Team,"1,750.00"
2244220,NCMA National Childminding Association,08/09/2011,52200,Contracted Services,Children's Services,Admin Commissioning,"6,333.00"
2247724,NMEG t/a Bolton Enterprise Centre,15/09/2011,22006,Rent of Storage Facilities,Adult Services,Museums Premises,"2,693.89"
2247722,NMEG t/a Bolton Enterprise Centre,15/09/2011,22006,Rent of Storage Facilities,Adult Services,Museums Premises,"2,011.02"
2246772,NWN Media Ltd,22/09/2011,43001,Printing General,Central Services,Civic & Admin Scene,"5,054.52"
2250238,National Car Parks Ltd#NCP,19/09/2011,20100,Day To Day Maintenance,Environmental Services,Security Services,945.44
2247019,National Grid,12/09/2011,Z1051,Work in Progress Additions,Housing GRF,Capital  General Fund,"1,005.00"
2243209,Newsquest (North West) Ltd,22/09/2011,48200,Advertising General,Environmental Services,Highway Management,"2,117.00"
2243210,Newsquest (North West) Ltd,22/09/2011,48200,Advertising General,Central Services,Legal Services Client,678.80
2252967,Newsquest (North West) Ltd,22/09/2011,48206,Statutory Notices,Development & Regen,Divisional Development,678.80
2243207,Newsquest (North West) Ltd,08/09/2011,48206,Statutory Notices,Development & Regen,Divisional Development,537.80
2243217,Norman Ashworth Ltd,22/09/2011,52200,Contracted Services,Environmental Services,Greenspace,"6,025.00"
2243084,North West Drain Services,05/09/2011,22202,Sewerage & Env'mental Servs,Housing GRF,HMO Licence Fees,700.00
2260124,Northern Education,29/09/2011,48509,Other Fees,Children's Services,Secondary Commissioning,670.00
2260004,Northgate Vehicle Hire (North West) Ltd,29/09/2011,33201,Transport Hire,Environmental Services,Transport Support Service,"13,524.45"
2246166,Northgate Vehicle Hire (North West) Ltd,12/09/2011,33201,Transport Hire,Environmental Services,Transport Support Service,"12,477.24"
2251343,Npower Limited,22/09/2011,21100,Electricity  General,Adult Services,AD  External Recharges,"16,124.68"
2251343,Npower Limited,22/09/2011,21100,Electricity  General,Environmental Services,Mngmnt & Admin Overhead,"12,284.99"
2251343,Npower Limited,22/09/2011,21100,Electricity  General,Housing GRF,Communal Services Capital And Admin.,"12,314.10"
2251343,Npower Limited,22/09/2011,21100,Electricity  General,Property Services,Admin Buildings  General,"11,728.57"
2251343,Npower Limited,22/09/2011,21100,Electricity  General,Central Corporate,Land & Property,720.82
2260691,Npower Limited,29/09/2011,21100,Electricity  General,Adult Services,AD  External Recharges,691.30
2260691,Npower Limited,29/09/2011,21100,Electricity  General,Environmental Services,Mngmnt & Admin Overhead,"13,939.98"
2260691,Npower Limited,29/09/2011,21100,Electricity  General,Housing GRF,Communal Services Capital And Admin.,"1,097.19"
2260691,Npower Limited,29/09/2011,21100,Electricity  General,Property Services,Castle Hill,"6,271.71"
2260691,Npower Limited,29/09/2011,21100,Electricity  General,Property Services,Admin Buildings  General,"31,962.11"
2260691,Npower Limited,29/09/2011,21100,Electricity  General,Central Corporate,Land & Property,565.53
2260674,Npower Limited,29/09/2011,21100,Electricity  General,Adult Services,AD  External Recharges,"8,114.29"
2260674,Npower Limited,29/09/2011,21100,Electricity  General,Environmental Services,Mngmnt & Admin Overhead,"1,647.18"
2260674,Npower Limited,29/09/2011,21100,Electricity  General,Housing Revenue Account,Housing Revenue Account,620.79
2260674,Npower Limited,29/09/2011,21100,Electricity  General,Property Services,Admin Buildings  General,"4,237.46"
2242980,Npower Limited,05/09/2011,21100,Electricity  General,Housing GRF,Communal Services Capital And Admin.,820.23
2259985,Npower Limited,29/09/2011,21100,Electricity  General,Environmental Services,Engineering Projects,"102,640.42"
2250104,Orange PCS Ltd#PAY S98  1DX,19/09/2011,45254,Mobile Telephone Calls,Children's Services,Management Team,"1,016.66"
2260318,Orange PCS Ltd#PAY S98  1DX,29/09/2011,45254,Mobile Telephone Calls,Children's Services,Management Team,"1,004.37"
2243796,Orchard Furniture & Recycling Service,08/09/2011,50002,Other Agency/Contracted Services,Environmental Services,Waste,506.00
2260383,Orchard Furniture & Recycling Service,29/09/2011,50002,Other Agency/Contracted Services,Environmental Services,Waste,563.50
2244270,P J Carney & Co Ltd,22/09/2011,20503,Strategic Landscape,Environmental Services,Greenspace,"2,370.00"
2243109,P J Carney & Co Ltd,26/09/2011,52200,Contracted Services,Environmental Services,Greenspace,"2,220.00"
2243036,P J Carney & Co Ltd,22/09/2011,52200,Contracted Services,Environmental Services,Greenspace,"6,760.00"
2248725,PREFS Ltd,15/09/2011,43032,Office Stationery,Children's Services,Business Support  Children Social Care,"1,980.00"
2260359,PSU Technology Group Ltd,29/09/2011,45401,Computer Maintenance,Finance Department,Corporate IT Investment,"6,128.40"
2242931,Park House Healthcare Ltd,15/09/2011,44051,Clients Aids & Adaptations,Adult Services,AD ICES,"4,290.00"
2242407,Parklands House Nursing Home,06/09/2011,54302,Nursing Provision,Adult Services,MH Residential External Provision,"13,280.00"
2242494,Parkside Nursing Home,06/09/2011,54301,Residential Provision,Adult Services,OA  External Provision Residential,"1,980.00"
2242378,Parkview Nursing & Residential Home,06/09/2011,54301,Residential Provision,Adult Services,OA  External Provision Residential,"21,260.90"
2242378,Parkview Nursing & Residential Home,06/09/2011,54302,Nursing Provision,Adult Services,OA  External Provision Residential,"1,470.60"
2242378,Parkview Nursing & Residential Home,06/09/2011,54302,Nursing Provision,Adult Services,PD Purchaser Residential Care,"1,491.72"
2260151,Pasture Ltd T/A Khans Quality Foods (KQF),29/09/2011,41101,Catering ProvisionsFood,Environmental Services,Catering,"1,696.01"
2254466,Paws For Kids,26/09/2011,55700,Grant Funded Expenditure,Chief Executives Department,Community Safety Ext Funded SchemesProjects,"15,100.50"
2248686,Pennine Services,29/09/2011,33202,Plant Hire,Environmental Services,Greenspace,"2,400.00"
2247116,Peter Ridley Waste Systems,22/09/2011,Z1051,Work in Progress Additions,Environmental Services,Environmental Services Balance sheet,"20,527.94"
2244380,Peter Ridley Waste Systems,22/09/2011,Z1051,Work in Progress Additions,Environmental Services,Environmental Services Balance sheet,"60,907.32"
2246755,Peter Ridley Waste Systems,26/09/2011,Z1051,Work in Progress Additions,Environmental Services,Environmental Services Balance sheet,"1,866.18"
2243916,Physical Company,19/09/2011,40100,Operational Equipment Purchase,Finance Department,Bolton Sports Village,511.25
2243916,Physical Company,19/09/2011,40100,Operational Equipment Purchase,Central Corporate,Bolton Sports Village,"1,354.80"
2247774,Pitney Bowes Ltd,29/09/2011,45001,Franking Machine,Environmental Services,Couriers,"1,568.00"
2260687,Pollock Lifts,29/09/2011,Z1051,Work in Progress Additions,Housing GRF,Capital  General Fund,"6,980.00"
2260692,Pollock Lifts,29/09/2011,Z1051,Work in Progress Additions,Housing GRF,Capital  General Fund,640.00
2248802,Portfolio#Rothwell Company Ltd,15/09/2011,48203,Marketing,Central Services,Marketing  General,"3,775.00"
2246748,Portman Doors Ltd,12/09/2011,20100,Day To Day Maintenance,Children's Services,Blackrod Youth Centre,"1,079.00"
2252108,Post Office Ltd,22/09/2011,31300,Vehicle Tax,Environmental Services,Transport Support Service,"2,160.00"
2251853,REDACTED - PERSONAL DATA,22/09/2011,44056,Clients Training Courses,Children's Services,Sport & Active Living � General,"1,650.00"
2256426,Pre-School Learning Alliance#Tonge Nursery#Oxford Grove,26/09/2011,44054,Other Clients Services,Children's Services,Safeguarding Team North,648.00
2248835,Premier Paper Group Limited,29/09/2011,43032,Office Stationery,Central Services,Printing Services,699.80
2242484,Princess Alexandra Home,06/09/2011,54301,Residential Provision,Adult Services,OA  External Provision Residential,"1,458.80"
2247109,Prism Medical UK,22/09/2011,44051,Clients Aids & Adaptations,Adult Services,AD ICES,"1,895.00"
2254224,Prism Medical UK,29/09/2011,44051,Clients Aids & Adaptations,Adult Services,AD ICES,713.72
2243911,Proathletics Ltd,22/09/2011,20503,Strategic Landscape,Environmental Services,Greenspace,"1,929.00"
2248334,Proludic Limited,15/09/2011,40601,General Materials,Environmental Services,Greenspace,"1,271.76"
2261694,Quality Solicitors Gruber Garratt,30/09/2011,Z1051,Work in Progress Additions,Housing GRF,Capital  General Fund,"43,500.00"
2242464,Queens Park View#Intelligent Care,06/09/2011,54301,Residential Provision,Adult Services,MH Residential External Provision,"8,349.80"
2251933,RNIB#Royal National Institute of the Blind,22/09/2011,52200,Contracted Services,Adult Services,PD Purcahser Domiciliary Care,"9,430.00"
2242462,RNID - Fosse Bank House,06/09/2011,54301,Residential Provision,Adult Services,MH Residential External Provision,"4,545.88"
2249192,ROL Solutions Ltd,26/09/2011,48629,Miscellaneous Expenses,Finance Department,C.R.M. Operations,"11,695.00"
2242379,Randomlight Ltd#Heightside House,06/09/2011,54301,Residential Provision,Adult Services,MH Residential External Provision,"2,270.12"
2242379,Randomlight Ltd#Heightside House,06/09/2011,54302,Nursing Provision,Adult Services,LD Purchaser Residential Care,"2,228.04"
2242379,Randomlight Ltd#Heightside House,06/09/2011,54302,Nursing Provision,Adult Services,MH Residential External Provision,"8,848.52"
2242448,Redbank Care Home#Payee Voyage North,06/09/2011,54301,Residential Provision,Adult Services,LD Purchaser Residential Care,"4,692.20"
2243121,Rigby Taylor Ltd,05/09/2011,40601,General Materials,Environmental Services,Streets & Grounds,"1,188.00"
2243120,Rigby Taylor Ltd,05/09/2011,40601,General Materials,Environmental Services,Streets & Grounds,711.60
2254654,River Street Glass (Bolton) Ltd,26/09/2011,20100,Day To Day Maintenance,Central Corporate,Land & Property,"1,129.68"
2242380,Rivington View Nursing Home,06/09/2011,54301,Residential Provision,Adult Services,OA  External Provision Residential,693.42
2242380,Rivington View Nursing Home,06/09/2011,54302,Nursing Provision,Adult Services,OA  External Provision Residential,877.06
2242381,Rivington View Nursing Home,06/09/2011,54301,Residential Provision,Adult Services,OA  External Provision Residential,"16,672.90"
2242381,Rivington View Nursing Home,06/09/2011,54302,Nursing Provision,Adult Services,OA  External Provision Residential,"4,222.16"
2259864,Robinson Plant Hire,29/09/2011,33202,Plant Hire,Environmental Services,Greenspace,529.75
2248409,Robinson Plant Hire,15/09/2011,33202,Plant Hire,Environmental Services,Greenspace,661.78
2243160,Robinson Plant Hire,05/09/2011,33202,Plant Hire,Environmental Services,Greenspace,661.78
2242382,Rose Court Nursing & RH Ltd,06/09/2011,54301,Residential Provision,Adult Services,OA  External Provision Residential,"6,174.24"
2242382,Rose Court Nursing & RH Ltd,06/09/2011,54301,Residential Provision,Adult Services,MH Residential External Provision,771.78
2242382,Rose Court Nursing & RH Ltd,06/09/2011,54302,Nursing Provision,Adult Services,OA  External Provision Residential,"7,717.80"
2242382,Rose Court Nursing & RH Ltd,06/09/2011,54302,Nursing Provision,Adult Services,MH Residential External Provision,"1,543.56"
2242408,Rosebridge Court,06/09/2011,54302,Nursing Provision,Adult Services,OA  External Provision Residential,"1,494.08"
2250113,Rosewalks Ltd,19/09/2011,28100,Other Prem Insurance Direct,Property Services,Paderborn House,"25,752.39"
2249079,Royal Mail Group Ltd,19/09/2011,45000,Postages Direct Costs,Finance Department,Housing Benefits,711.36
2249079,Royal Mail Group Ltd,19/09/2011,45000,Postages Direct Costs,Finance Department,Council Tax,945.25
2246752,Royal Mail Group Ltd,12/09/2011,45000,Postages Direct Costs,Finance Department,Housing Benefits,732.64
2246752,Royal Mail Group Ltd,12/09/2011,45000,Postages Direct Costs,Finance Department,Council Tax,"1,817.72"
2243617,Royal Mencap Society#Mencap,06/09/2011,54301,Residential Provision,Adult Services,LD Purchaser Residential Care,"2,781.00"
2243616,Royal Mencap Society#Mencap,06/09/2011,54301,Residential Provision,Adult Services,LD Purchaser Residential Care,"21,052.00"
2243606,Royal Mencap Society#Mencap,06/09/2011,54301,Residential Provision,Adult Services,LD Purchaser Residential Care,"11,680.20"
2252061,REDACTED - PERSONAL DATA,22/09/2011,53100,Agency Staff  Fulltime,Legal Trading,Legal Services Trading Account,"3,770.00"
2252608,Scottish & Southern Energy plc,22/09/2011,21100,Electricity  General,Housing GRF,Communal Services Capital And Admin.,517.33
2242954,Scottish & Southern Energy plc,05/09/2011,21100,Electricity  General,Central Corporate,Land & Property,531.66
2255170,ScottishPower,26/09/2011,21100,Electricity  General,Adult Services,AD  External Recharges,814.01
2251234,REDACTED - PERSONAL DATA,19/09/2011,48203,Marketing,Central Services,Marketing  Development,750.00
2247708,Select Medical Ltd,19/09/2011,44051,Clients Aids & Adaptations,Adult Services,AD ICES,795.84
2248849,Serco Leisure Operating Ltd#2,29/09/2011,52000,Vol Assoc Grants  General,Children's Services,Castle Hill NonStaff,"5,317.92"
2251846,Serco Leisure Operating Ltd#2,22/09/2011,48509,Other Fees,Children's Services,Sport & Active Living � General,"4,312.50"
2248956,Serco Leisure Operating Ltd#2,29/09/2011,53102,Agency Staff  Other,Adult Services,Leisure  Jubilee Pool,"1,080.76"
2260302,Shanleys Ltd,29/09/2011,48203,Marketing,Central Services,Marketing  Development,"4,406.00"
2247576,Shanleys Ltd,15/09/2011,48203,Marketing,Central Services,Marketing  Development,"3,055.00"
2247577,Shanleys Ltd,15/09/2011,48203,Marketing,Central Services,Marketing Committed Monies,"3,871.00"
2244256,Shanleys Ltd,12/09/2011,48203,Marketing,Central Services,Marketing Committed Monies,"1,273.52"
2247579,Shanleys Ltd,15/09/2011,48203,Marketing,Central Services,Marketing  General,"4,016.00"
2244058,Shanleys Ltd,08/09/2011,48203,Marketing,Central Services,Marketing  General,"8,168.00"
2248418,Shanleys Ltd,15/09/2011,48203,Marketing,Central Services,Marketing  Development,"1,314.00"
2242383,Shannon Court Nursing Home,06/09/2011,54301,Residential Provision,Adult Services,OA  External Provision Residential,"1,252.87"
2242384,Shannon Court Nursing Home,06/09/2011,54301,Residential Provision,Adult Services,OA  External Provision Residential,"15,900.35"
2242384,Shannon Court Nursing Home,06/09/2011,54302,Nursing Provision,Adult Services,OA  External Provision Residential,"19,568.65"
2242384,Shannon Court Nursing Home,06/09/2011,54302,Nursing Provision,Adult Services,MH Residential External Provision,"5,247.14"
2242453,Shassab,06/09/2011,54301,Residential Provision,Adult Services,MH Residential External Provision,"1,562.16"
2249041,Shifting Sands,26/09/2011,48203,Marketing,Central Services,Marketing  Development,630.00
2252589,SignHealth,29/09/2011,52000,Vol Assoc Grants  General,Adult Services,STARS & ILS  Management,"1,198.72"
2242899,SignHealth,22/09/2011,52200,Contracted Services,Adult Services,MH Residential External Provision,"1,107.71"
2247570,SimplyMed Ltd,22/09/2011,44051,Clients Aids & Adaptations,Adult Services,AD ICES,553.44
2249187,Social Care Services Group,29/09/2011,52000,Vol Assoc Grants  General,Children's Services,Res Serv Agency Placements,"9,214.20"
2242420,Southlands Residential Home#Southlands,06/09/2011,54301,Residential Provision,Adult Services,OA  External Provision Residential,"13,227.12"
2242440,Southlea Residential Care Home,06/09/2011,54301,Residential Provision,Adult Services,MH Residential External Provision,"1,278.04"
2242486,Southview Lodge Residential Care Home,06/09/2011,54301,Residential Provision,Adult Services,OA  External Provision Residential,"1,444.00"
2256487,Spectra Security Ltd,26/09/2011,25107,Secure Doors,Property Services,Town Hall,"1,176.00"
2256488,Spectra Security Ltd,26/09/2011,25107,Secure Doors,Property Services,Admin Buildings  General,591.00
2243926,Spectra Security Ltd,08/09/2011,20100,Day To Day Maintenance,Property Services,Castle Hill Training Rooms,696.00
2242457,Spennymoor Care Home Ltd,06/09/2011,54301,Residential Provision,Adult Services,OA  External Provision Residential,"16,083.36"
2243907,Sports-E-Quipment.co.uk Ltd,26/09/2011,40601,General Materials,Environmental Services,Greenspace,"2,785.50"
2243066,Spur Information Solutions Ltd,22/09/2011,45431,Computer Software Licences,Environmental Services,Education & Enforcement,"1,050.00"
2242385,St Catherines Care Home,06/09/2011,54301,Residential Provision,Adult Services,OA  External Provision Residential,"14,880.32"
2242385,St Catherines Care Home,06/09/2011,54302,Nursing Provision,Adult Services,OA  External Provision Residential,"17,376.49"
2248958,Stannah Lift Services Ltd,15/09/2011,Z1051,Work in Progress Additions,Housing GRF,Capital  General Fund,"4,860.00"
2243983,Stannah Lift Services Ltd,08/09/2011,Z1051,Work in Progress Additions,Housing GRF,Capital  General Fund,"2,002.00"
2259982,Stannah Lift Services Ltd,29/09/2011,Z1051,Work in Progress Additions,Housing Revenue Account,Capital  HRA,"1,976.00"
2260137,Stannah Lift Services Ltd,29/09/2011,Z1051,Work in Progress Additions,Housing Revenue Account,Capital  HRA,"1,466.00"
2260138,Stannah Lift Services Ltd,29/09/2011,Z1051,Work in Progress Additions,Housing Revenue Account,Capital  HRA,874.00
2242386,Starmount Villa Residential Care Home,06/09/2011,54301,Residential Provision,Adult Services,OA  External Provision Residential,"2,665.21"
2242387,Starmount Villa Residential Care Home,06/09/2011,54301,Residential Provision,Adult Services,OA  External Provision Residential,"9,501.36"
2252047,Stockport Psychology Services,22/09/2011,48509,Other Fees,Children's Services,Management Team,"1,092.00"
2242477,Stonedale Lodge#Bupa Care Homes,06/09/2011,54301,Residential Provision,Adult Services,OA  External Provision Residential,"1,368.00"
2248941,Straight plc,29/09/2011,Z1051,Work in Progress Additions,Environmental Services,Environmental Services Balance sheet,"15,548.20"
2242999,Straight plc,22/09/2011,Z1051,Work in Progress Additions,Environmental Services,Environmental Services Balance sheet,"12,433.80"
2243100,Straight plc,22/09/2011,Z1051,Work in Progress Additions,Environmental Services,Environmental Services Balance sheet,"3,347.52"
2242421,Strathmore Nursing Home#Whitehill Homes Ltd,06/09/2011,54301,Residential Provision,Adult Services,OA  External Provision Residential,"8,702.72"
2242421,Strathmore Nursing Home#Whitehill Homes Ltd,06/09/2011,54301,Residential Provision,Adult Services,PD Purchaser Residential Care,"1,493.52"
2242421,Strathmore Nursing Home#Whitehill Homes Ltd,06/09/2011,54302,Nursing Provision,Adult Services,OA  External Provision Residential,"2,987.04"
2242423,Sunnyside Residential Home,06/09/2011,54301,Residential Provision,Adult Services,OA  External Provision Residential,"30,063.38"
2243922,Supplies Team Limited,12/09/2011,45405,Computer Consumables,Chief Executives Department,Regulatory Service Support,"1,002.36"
2242927,Supra UK Limited,12/09/2011,44054,Other Clients Services,Adult Services,OA  Home Care Services external provision,"4,819.87"
2243928,Survey Systems Limited,15/09/2011,40100,Operational Equipment Purchase,Property Services,Projects,"3,809.55"
2247703,Sutcliffe Play Ltd,29/09/2011,20502,Maint Of Playgrounds,Environmental Services,Greenspace,819.14
2242389,Sydenhurst,06/09/2011,54301,Residential Provision,Adult Services,OA  External Provision Residential,"2,598.64"
2248213,Sykes Chemist Ltd,15/09/2011,52200,Contracted Services,Adult Services,Drugs Action Team,"1,161.60"
2248211,Sykes Chemist Ltd,15/09/2011,52200,Contracted Services,Adult Services,Drugs Action Team,640.20
2260384,Sykes Chemist Ltd,29/09/2011,52200,Contracted Services,Adult Services,Drugs Action Team,549.80
2260174,Sykes Chemist Ltd,29/09/2011,52200,Contracted Services,Adult Services,Drugs Action Team,882.40
2244255,Symphony Housing Group,19/09/2011,44054,Other Clients Services,Adult Services,LD Provider  Supported Housing,822.60
2259975,Synergy Creative Design & Marketing Ltd,29/09/2011,48201,Property Advertising,Housing GRF,Homes for You,712.50
2260319,Synergy Creative Design & Marketing Ltd,29/09/2011,48201,Property Advertising,Housing GRF,Homes for You,712.50
2260329,Synergy Creative Design & Marketing Ltd,29/09/2011,48201,Property Advertising,Housing GRF,Homes for You,712.50
2260334,Synergy Creative Design & Marketing Ltd,29/09/2011,48201,Property Advertising,Housing GRF,Homes for You,712.50
2248962,Synergy Creative Design & Marketing Ltd,15/09/2011,48201,Property Advertising,Housing GRF,Homes for You,712.50
2248966,Synergy Creative Design & Marketing Ltd,15/09/2011,48201,Property Advertising,Housing GRF,Homes for You,712.50
2253089,T Lowe & Son Limited,26/09/2011,20100,Day To Day Maintenance,Central Corporate,Land & Property,681.75
2250159,TL Electrical Services 2002 Ltd,19/09/2011,20100,Day To Day Maintenance,Environmental Services,Markets  Rent Account,"3,500.00"
2251972,TMP UK Ltd,22/09/2011,48509,Other Fees,Finance Department,AGMA procurement & recruitment,"4,600.00"
2251100,Tandem Video Productions,19/09/2011,48509,Other Fees,Adult Services,LMA External Funded Projects,"3,600.00"
2245986,Technology Solutions Limited,12/09/2011,25106,C.C.T.V.,Environmental Services,Security Services,"2,151.83"
2259059,Tenders-UK#Inntbiz Ltd,29/09/2011,48510,Consultancy Fees,Adult Services,AD Transforming Social Care,"1,060.00"
2242377,The Bakewells,06/09/2011,54301,Residential Provision,Adult Services,OA  External Provision Residential,"17,769.33"
2242400,The Brandles,06/09/2011,54301,Residential Provision,Adult Services,MH Residential External Provision,"3,015.52"
2242468,The Chimes,06/09/2011,54301,Residential Provision,Adult Services,PD Purchaser Residential Care,"1,740.00"
2242439,The Clough Residential Home,06/09/2011,54301,Residential Provision,Adult Services,OA  External Provision Residential,"24,504.18"
2242438,The Clough Residential Home,06/09/2011,54301,Residential Provision,Adult Services,OA  External Provision Residential,"1,066.80"
2252878,The Columbaria Company,29/09/2011,40601,General Materials,Environmental Services,Bereavement Services,843.80
2245068,The Corporate Group#Corporate Products Ltd,12/09/2011,48203,Marketing,Central Services,Marketing  Development,"5,250.00"
2242431,The David Lewis Centre,06/09/2011,54301,Residential Provision,Adult Services,LD Purchaser Residential Care,"11,530.90"
2254435,The Lancashire Wildlife Trust,29/09/2011,53000,Private Contracted Services,Environmental Services,Greenspace,"7,924.00"
2254395,The Leaving Care Team,26/09/2011,52300,Client Support Costs,Children's Services,Child Prot Leaving Care Team,"1,343.34"
2244224,The Leaving Care Team,08/09/2011,52300,Client Support Costs,Children's Services,Child Prot Leaving Care Team,"2,014.89"
2242443,The Oaks,06/09/2011,54301,Residential Provision,Adult Services,OA  External Provision Residential,"1,580.68"
2242434,The Old Vicarage,06/09/2011,54301,Residential Provision,Adult Services,OA  External Provision Residential,"3,459.92"
2246392,The Pierpoint Group,22/09/2011,52200,Contracted Services,Adult Services,Drugs Action Team,"2,040.00"
2246751,The Railway Home for Children,22/09/2011,52000,Vol Assoc Grants  General,Children's Services,Disability Serv External Provision,"4,800.00"
2242399,The Spinal Unit Action Group,06/09/2011,54301,Residential Provision,Adult Services,PD Purchaser Residential Care,"2,192.40"
2250266,The Sycamore Project#Zacs Bar,19/09/2011,52200,Contracted Services,Children's Services,Admin Commissioning,"21,300.00"
2254281,The Textile Restoration Studio,29/09/2011,48509,Other Fees,Adult Services,LMA External Funded Projects,950.00
2259963,The Together Trust#was BGWS,29/09/2011,52200,Contracted Services,Adult Services,LD Purchaser Supported Housing,"17,136.44"
2243620,The Together Trust#was BGWS,06/09/2011,54301,Residential Provision,Adult Services,LD Purchaser Residential Care,"14,345.76"
2259960,The Together Trust#was BGWS,29/09/2011,52200,Contracted Services,Adult Services,LD Purchaser Supported Housing,"17,136.44"
2250180,The Together Trust#was BGWS,19/09/2011,52200,Contracted Services,Adult Services,LD Purchaser Supported Housing,"6,730.96"
2250181,The Together Trust#was BGWS,19/09/2011,52200,Contracted Services,Adult Services,LD Purchaser Supported Housing,"7,828.80"
2250182,The Together Trust#was BGWS,19/09/2011,52200,Contracted Services,Adult Services,LD Purchaser Supported Housing,"10,533.26"
2252063,The Traffic Enforcement Centre,22/09/2011,48513,Traffic Enforcement Centre,Environmental Services,Parking Services  On Street,"10,000.00"
2251817,The Vacant Property Specialists#VPS (UK) Limited,22/09/2011,Z1051,Work in Progress Additions,Housing Revenue Account,Capital  HRA,770.00
2246254,Thistlethwaite Tyres & Exhausts#Factor Micheldever Tyre Svs Ltd,12/09/2011,31303,Tyres,Environmental Services,Transport Support Service,"6,247.61"
2248346,Thomson Reuters (Professional) UK Ltd,22/09/2011,45431,Computer Software Licences,Legal Trading,Legal Services Trading Account,"11,625.40"
2242445,Thorley House,06/09/2011,54301,Residential Provision,Adult Services,OA  External Provision Residential,"1,519.00"
2242401,Thorncliffe Nursing Home,06/09/2011,54301,Residential Provision,Adult Services,OA  External Provision Residential,"1,576.00"
2254439,Together Travel Ltd#Maypole,26/09/2011,34402,Clients  Taxi Fares,Environmental Services,SNT Childrens Servs,715.50
2244016,Tony Yorke Associates#Tony Yorke Limited,08/09/2011,48501,Artistes Fees,Environmental Services,Greenspace,585.00
2250139,Total Fire Services Ltd,19/09/2011,52200,Contracted Services,Property Services,Operational Facilities Management,645.00
2244204,Transport For Greater Manchester,08/09/2011,40102,Operational Equipment Rental,Development & Regen,Metro Shuttle Bus,"7,962.00"
2257300,Transworld,29/09/2011,48509,Other Fees,Children's Services,Family Support Day Care,600.00
2243098,Treescape North West Ltd,22/09/2011,52200,Contracted Services,Environmental Services,Greenspace,"1,400.00"
2260348,Trench Right Ltd,29/09/2011,20501,Engineering Work,Environmental Services,Highway Regulation & Inspection,"15,024.00"
2247567,Ultra Electronics Command And Control Systems,29/09/2011,45401,Computer Maintenance,Environmental Services,Civil Contingencies,"1,799.00"
2244000,United Utilities Water PLC#1,08/09/2011,22201,Water Charges  Unmetered,Environmental Services,Parking Services  Off Street,628.92
2251430,United Utilities Water PLC#1,19/09/2011,21100,Electricity  General,Environmental Services,Mngmnt & Admin Overhead,660.00
2251430,United Utilities Water PLC#1,19/09/2011,21100,Electricity  General,Housing Revenue Account,Housing Revenue Account,"1,230.00"
2252595,United Utilities Water PLC#1,22/09/2011,22200,Water Charges  Metered,Adult Services,Prop. Servs. Winifred Kettle,"6,042.52"
2252595,United Utilities Water PLC#1,22/09/2011,22201,Water Charges  Unmetered,Adult Services,Prop. Servs. Winifred Kettle,"2,879.21"
2252595,United Utilities Water PLC#1,22/09/2011,22200,Water Charges  Metered,Environmental Services,Mngmnt & Admin Overhead,"3,335.89"
2252595,United Utilities Water PLC#1,22/09/2011,22201,Water Charges  Unmetered,Environmental Services,Mngmnt & Admin Overhead,"1,137.89"
2252595,United Utilities Water PLC#1,22/09/2011,22200,Water Charges  Metered,Housing Revenue Account,Housing Revenue Account,"1,012.73"
2252595,United Utilities Water PLC#1,22/09/2011,22201,Water Charges  Unmetered,Housing Revenue Account,Housing Revenue Account,526.54
2252595,United Utilities Water PLC#1,22/09/2011,22200,Water Charges  Metered,Property Services,Admin Buildings  General,"2,406.70"
2252595,United Utilities Water PLC#1,22/09/2011,22201,Water Charges  Unmetered,Property Services,Admin Buildings  General,603.90
2248631,United Utilities Water PLC#1,15/09/2011,21100,Electricity  General,Housing GRF,Communal Services Capital And Admin.,537.19
2243999,United Utilities Water PLC#1,08/09/2011,22201,Water Charges  Unmetered,Environmental Services,Parking Services  Off Street,628.92
2248653,Urban Vision Partnership Ltd#GMGU,29/09/2011,53102,Agency Staff  Other,Property Services,Accomm Rationalisation Strategy,"4,051.00"
2252196,Urban Vision Partnership Ltd#GMGU,29/09/2011,48510,Consultancy Fees,Development & Regen,Development Management,576.00
2242390,Vale House#Vale Residential Ltd,06/09/2011,54301,Residential Provision,Adult Services,OA  External Provision Residential,"15,782.72"
2243988,REDACTED - PERSONAL DATA,08/09/2011,22003,Ground Rent,Adult Services,STARS & ILS  Management,"1,833.33"
2259979,REDACTED - PERSONAL DATA,29/09/2011,22003,Ground Rent,Adult Services,STARS & ILS  Management,"1,833.33"
2252030,Valuation Office Agency,22/09/2011,Z1051,Work in Progress Additions,Highways,Stores,"1,000.00"
2243609,Vitalise Ellerslie Court,06/09/2011,54301,Residential Provision,Adult Services,PD Purchaser Residential Care,"2,722.32"
2248491,W & S C Jobson,15/09/2011,52200,Contracted Services,Environmental Services,Transport Support Service,812.37
2248440,W Craven & Son,26/09/2011,20100,Day To Day Maintenance,Adult Services,Libraries  Farnworth,727.62
2256801,WDM Ltd,26/09/2011,Z1051,Work in Progress Additions,Highways,Stores,"9,609.38"
2253435,Wainwright Tree Stump Removal Ltd,26/09/2011,52200,Contracted Services,Environmental Services,Greenspace,650.00
2257258,Waltons the Caterers,29/09/2011,41202,Refreshments for Meetings,Children's Services,Technical Innovation Centre,"1,368.50"
2242463,Westfield House Care Home,06/09/2011,54301,Residential Provision,Adult Services,MH Residential External Provision,"4,292.72"
2242451,Windermere House,06/09/2011,54302,Nursing Provision,Adult Services,MH Residential External Provision,"2,214.00"
2242392,Wingates Residential Home,06/09/2011,54301,Residential Provision,Adult Services,OA  External Provision Residential,"38,520.42"
2242391,Wingates Residential Home,06/09/2011,54301,Residential Provision,Adult Services,OA  External Provision Residential,906.78
2242403,Withins Residential Home,06/09/2011,54301,Residential Provision,Adult Services,OA  External Provision Residential,"68,266.99"
2242425,Worsley Lodge Nursing Home,06/09/2011,54301,Residential Provision,Adult Services,OA  External Provision Residential,"2,126.84"
2250172,Xerox Business Services,19/09/2011,43030,Photocopying Lease/Maintenance,Chief Executives Department,MFD Project,"31,455.50"
2249711,Yorkshire Purchasing Organisation,22/09/2011,41101,Catering ProvisionsFood,Environmental Services,Catering,691.98
2249738,Yorkshire Purchasing Organisation,22/09/2011,41101,Catering ProvisionsFood,Environmental Services,Catering,808.08
2249692,Yorkshire Purchasing Organisation,22/09/2011,41101,Catering ProvisionsFood,Environmental Services,Catering,744.27
2249667,Yorkshire Purchasing Organisation,22/09/2011,41101,Catering ProvisionsFood,Environmental Services,Catering,935.72
2254112,Yorkshire Purchasing Organisation,29/09/2011,41101,Catering ProvisionsFood,Environmental Services,Catering,974.62
2254122,Yorkshire Purchasing Organisation,29/09/2011,41101,Catering ProvisionsFood,Environmental Services,Catering,943.90
2254063,Yorkshire Purchasing Organisation,29/09/2011,41101,Catering ProvisionsFood,Environmental Services,Catering,811.36
2254041,Yorkshire Purchasing Organisation,29/09/2011,41101,Catering ProvisionsFood,Environmental Services,Catering,887.86
2254077,Yorkshire Purchasing Organisation,29/09/2011,41101,Catering ProvisionsFood,Environmental Services,Catering,850.05
2254085,Yorkshire Purchasing Organisation,29/09/2011,41101,Catering ProvisionsFood,Environmental Services,Catering,942.15
2244940,Yorkshire Purchasing Organisation,16/09/2011,41101,Catering ProvisionsFood,Environmental Services,Catering,640.39
2244953,Yorkshire Purchasing Organisation,16/09/2011,41101,Catering ProvisionsFood,Environmental Services,Catering,731.07
2244959,Yorkshire Purchasing Organisation,16/09/2011,41101,Catering ProvisionsFood,Environmental Services,Catering,824.51
2244915,Yorkshire Purchasing Organisation,16/09/2011,41101,Catering ProvisionsFood,Environmental Services,Catering,681.90
2244947,Yorkshire Purchasing Organisation,16/09/2011,41101,Catering ProvisionsFood,Environmental Services,Catering,566.68
2244982,Yorkshire Purchasing Organisation,16/09/2011,41101,Catering ProvisionsFood,Environmental Services,Catering,942.56
2250132,Yorkshire Purchasing Organisation,22/09/2011,41101,Catering ProvisionsFood,Adult Services,Civic Catering Dido,"1,092.36"
2243741,Yorkshire Purchasing Organisation,08/09/2011,40100,Operational Equipment Purchase,Adult Services,Community Meals,763.84
2254351,Yorkshire Purchasing Organisation,29/09/2011,41101,Catering ProvisionsFood,Adult Services,Community Meals,521.32
2249769,Yorkshire Purchasing Organisation,22/09/2011,41101,Catering ProvisionsFood,Adult Services,PD Provider Day Services,651.12
2249767,Yorkshire Purchasing Organisation,22/09/2011,41101,Catering ProvisionsFood,Adult Services,OA  Firwood  Residential,569.37
2245007,Yorkshire Purchasing Organisation,16/09/2011,41101,Catering ProvisionsFood,Adult Services,OA  Firwood  Residential,566.95
2248326,Zodion Limited#Was Cableform Ltd,29/09/2011,Z1051,Work in Progress Additions,Highways,Stores,"23,000.00"
2260401,Zodion Limited#Was Cableform Ltd,29/09/2011,Z1051,Work in Progress Additions,Highways,Stores,"8,800.00"
